Cogmind - Beta 15 @@@ ROGUE MODE // 2025.08.08 @ 12:19:41 Player: puppuppit Result: Destroyed by S-43 Plague with Heavy Machine Gun Performance ------------- Evolutions (8) 4000 Regions Visited (28) 5600 Robots Destroyed (917) 4585 Value Destroyed (39163) 39163 Prototype IDs (177) 3540 Alien Tech Used (9) 1800 Bonus (29647) 29647 TOTAL SCORE: 88335 Bonus ------- Triggered High Security 1500 High Alert Combat Kills 20492 Follower Combat Kills 3136 Network Hubs Disabled 200 Registered with UFD 300 Met Optimus in HQ 500 Met Zhirov 300 Built Enhanced Grunts 300 A7 Reached Mainframe 300 Met R17 at Cetus 500 Hacked Protovariant 500 Met R17 at Research 2000 Acquired SGEMP 2000 Met Optimus at Protoforge 1000 Friendly Fire -3381 Cogmind --------- Core Integrity 0/1450 Matter 138/300 Energy 974/1470 System Corruption 22% Temperature Cool (19) Movement Hovering (124) Ox1 Location -2/Protoforge Parts ------- > --- POWER (2) -------- Light Antimatter Reactor Hybrid Graviton Reactor > --- PROPULSION (8) --- Improved Antigrav System Combat Antigrav System Combat Antigrav System Antigrav Array Combat Linear Gravjet (fused) > --- UTILITY (9) ------ 0bPrime Scrap Suit Large Storage Unit Experimental Core Analyzer Experimental Reaction Control System Makeshift Propulsion Shielding Heavy Armor Plating Medium Regenerative Plating > --- WEAPON (4) ------- Overtuned Linear Accelerator Compact Linear Accelerator Compact Linear Accelerator Compact Linear Accelerator > --- INVENTORY (15) --- Hybrid Graviton Reactor Experimental Matter Compressor (500) Experimental Remote Shield Crosscalibrator Core Cannon Helical Railgun Overtuned Linear Accelerator Supercharged Sigix Terminator (1) Sigix Broadsword SGEMP Prototype Peak State ------------ > --- POWER ------------ Improved Quantum Reactor Zero-point Reactor > --- PROPULSION ------- Cooled Antigrav System Cooled Antigrav System Cooled Antigrav System Antigrav Array Antigrav Array Combat Linear Gravjet > --- UTILITY ---------- Advanced Cooling System Large Storage Unit Experimental Core Analyzer Experimental Armor Integrity Analyzer Advanced Recoil Stabilizer Experimental Reaction Control System Medium Regenerative Plating Graphene Brace A0-MCA's Component Scanner > --- WEAPON ----------- Core Cannon Concept XC Strikerail Enhanced Hardcell Cannon > --- INVENTORY -------- Cooled Antigrav System Combat Antigrav System Combat Antigrav System Advanced Cooling System Experimental Matter Compressor Experimental Armor Integrity Analyzer Railgun Enhanced Hardcell Cannon Ragnarok Missile Launcher Supercharged Sigix Terminator Sigix Broadsword SGEMP Prototype [Rating: 219] Favorites ----------- Power Light Antimatter Reactor Engine Light Angular Momentum Engine Power Core Light Fission Core Reactor Light Antimatter Reactor Propulsion Armored Treads Treads Armored Treads Wheel Wheel Hover Unit Antigrav System Utility Large Storage Unit Device Experimental Heat Sink Storage Large Storage Unit Processor Advanced Targeting Computer Hackware Improved System Shield Protection Medium Regenerative Plating Weapon Assault Cannon Energy Gun Advanced Variable Charge Gun Energy Cannon Core Cannon Ballistic Gun Advanced KE Penetrator Ballistic Cannon Assault Cannon Launcher Ragnarok Missile Launcher Special Weapon Improved Plasma Cutter Impact Weapon Core Stripper Slashing Weapon Sigix Broadsword Build | -11 -10 -10 -9 -9 -9 -8 -8 -8 -8 -8 -6 -6 -6 -5 -5 -5 -5 -5 -4 -4 -4 -4 -3 -3 -3 -2 -2 -2 ------- Run | Yrd Mat Min Mat Min Exi Min Mat Sto Rec Scr Fac Was Fac Fac Ext Cet Arc Hub Fac Upp Upp Zhi Pro Res Qua Res Tes Frg Slots Evolved 16 | . . . 2 . . . 2 . . . 4 . . 2 . . . . 2 . . . . 2 . 2 . . Power 1 | . . . . . . . . . . . . . . . . . . . 1 . . . . . . . . . Propulsion 6 | . . . . . . . 1 . . . 2 . . 1 . . . . . . . . . 1 . 1 . . Utility 7 | . . . . . . . 1 . . . 2 . . 1 . . . . 1 . . . . 1 . 1 . . Weapon 2 | . . . 2 . . . . . . . . . . . . . . . . . . . . . . . . . Parts Attached 488 | 7 8 1 24 . 1 1 19 17 1 5 59 1 34 14 17 4 16 15 49 2 1 1 4 55 15 22 10 85 Power 78 | 1 . . 1 . . . 4 . . 3 10 . 4 1 4 1 1 2 10 1 . 1 2 11 3 5 . 13 Engine 16 | 1 . . 1 . . . 4 . . 2 5 . . . . . . . 3 . . . . . . . . . Core 18 | . . . . . . . . . . 1 5 . 4 . 2 . . 1 4 . . . 1 . . . . . Reactor 44 | . . . . . . . . . . . . . . 1 2 1 1 1 3 1 . 1 1 11 3 5 . 13 Propulsion 122 | 2 1 . 10 . . . 3 . . 1 16 . 9 2 3 . 5 5 17 . . . . 19 5 5 6 13 Treads 21 | 2 1 . 10 . . . 3 . . 1 4 . . . . . . . . . . . . . . . . . Leg . | . . . . . . . . . . . . . . . . . . . . . . . . . . . . . Wheel 5 | . . . . . . . . . . . 5 . . . . . . . . . . . . . . . . . Hover 96 | . . . . . . . . . . . 7 . 9 2 3 . 5 5 17 . . . . 19 5 5 6 13 Flight . | . . . . . . . . . . . . . . . . . . . . . . . . . . . . . Utility 149 | 2 3 1 2 . . . 6 5 1 1 15 . 14 7 6 . 7 4 17 1 1 . . 16 3 5 1 31 Device 73 | 1 . 1 . . . . 3 3 . . 5 . 6 6 4 . 3 1 10 1 . . . 9 2 2 1 15 Storage 14 | 1 1 . 1 . . . . . . 1 1 . 2 . . . . 1 3 . . . . 1 . 1 . 1 Processor 19 | . . . 1 . . . . . . . 4 . 3 . . . . . 2 . 1 . . 1 . 1 . 6 Hackware 25 | . . . . . . . 2 1 1 . 3 . 1 1 1 . 4 2 2 . . . . 5 1 1 . . Protection 18 | . 2 . . . . . 1 1 . . 2 . 2 . 1 . . . . . . . . . . . . 9 Artifact . | . . . . . . . . . . . . . . . . . . . . . . . . . . . . . Weapon 139 | 2 4 . 11 . 1 1 6 12 . . 18 1 7 4 4 3 3 4 5 . . . 2 9 4 7 3 28 Energy Gun 2 | . . . . . . . . 1 . . . . . . . 1 . . . . . . . . . . . . Energy Cannon 1 | . . . . . . . . . . . . . . . . . . . . . . . . . 1 . . . Ballistic Gun 75 | 2 2 . 10 . 1 . 5 5 . . 6 . 5 1 3 2 3 2 3 . . . 2 2 . . . 21 Ballistic Cannon 37 | . . . . . . . . 4 . . 6 . 2 2 1 . . 2 1 . . . . 5 . 5 3 6 Launcher 18 | . 2 . 1 . . 1 1 2 . . 4 1 . . . . . . 1 . . . . 1 1 2 . 1 Special Weapon 3 | . . . . . . . . . . . 1 . . 1 . . . . . . . . . 1 . . . . Impact Weapon 1 | . . . . . . . . . . . . . . . . . . . . . . . . . 1 . . . Slashing Weapon 2 | . . . . . . . . . . . 1 . . . . . . . . . . . . . 1 . . . Piercing Weapon . | . . . . . . . . . . . . . . . . . . . . . . . . . . . . . Special Melee Weapon . | . . . . . . . . . . . . . . . . . . . . . . . . . . . . . Unidentified Prototypes 30 | . . 1 1 . . . . 6 . . 5 . 1 2 2 1 . . 2 . . 1 . . 6 1 . 1 Corrupted Parts 5 | . . . . . . . . . . . 1 . . . . . 1 3 . . . . . . . . . . System Corruption 32 | . . . . . . . . . . . 1 . . . . . 4 27 . . . . . . . . . . Parts Lost 95 | . . . . . . . 5 . . . 5 . 9 4 2 . 1 15 10 2 . . 6 7 2 3 . 24 Power 14 | . . . . . . . . . . . 2 . . . 1 . . 3 . 1 . . 2 3 . . . 2 Propulsion 44 | . . . . . . . 1 . . . 2 . 3 2 . . 1 9 7 . . . 3 2 . 1 . 13 Utility 18 | . . . . . . . . . . . 1 . 2 1 1 . . 1 1 1 . . . 1 1 2 . 6 Weapon 19 | . . . . . . . 4 . . . . . 4 1 . . . 2 2 . . . 1 1 1 . . 3 Highest Loss Streak 11 | . . . . . . . 2 . . . 3 . 2 2 1 . 1 11 6 2 . . 4 3 1 1 . 3 To Critical Strikes 1 | . . . . . . . 1 . . . . . . . . . . . . . . . . . . . . . Average Backups 13 | . 9 15 14 15 14 15 14 14 15 14 13 12 13 14 14 15 14 14 14 13 15 14 12 14 13 12 11 9 Power . | . . 1 1 1 1 2 1 . . . . 1 1 1 . 1 1 1 1 . . . . . 1 1 . 1 Propulsion 1 | . 1 3 3 4 4 4 2 1 1 . 1 2 4 2 3 3 1 1 1 2 2 2 . 1 2 1 2 . Utility 5 | . 3 3 4 5 5 5 5 6 7 8 6 3 4 5 6 5 5 5 8 7 8 8 8 7 6 5 4 3 Weapon 4 | . 5 7 5 5 4 4 4 7 6 5 5 6 4 4 3 5 6 6 3 3 4 4 3 3 1 2 3 4 Tool/Special . | . . . . . . . . . . . . . . . . . . . . . . . . . . . . . Unused Backups 82 | . 5 1 9 1 1 . 3 6 . 5 9 . 8 . 2 . 2 . 7 1 3 1 . 7 1 2 2 6 Power 12 | . . . . . . . 2 1 . . . . 2 . . . . . 1 . . 1 . 2 . . 1 2 Propulsion 8 | . . . 1 . . . . 1 . 1 1 . 1 . . . 1 . . . . . . 1 . . . 1 Utility 40 | . 5 . 3 1 1 . 1 2 . 1 6 . 4 . 1 . 1 . 6 1 1 . . . 1 2 1 2 Weapon 20 | . . 1 5 . . . . 1 . 3 2 . 1 . . . . . . . 2 . . 4 . . . 1 Tool/Special 2 | . . . . . . . . 1 . . . . . . 1 . . . . . . . . . . . . . Average Slot Usage (%) 93 | . 99 100 99 100 100 100 99 99 97 99 90 86 85 91 93 93 99 94 95 93 94 77 86 90 82 84 85 85 Engine 4 | . 14 14 11 11 11 11 9 9 9 8 2 . . . . . . . 1 . . . . . . . . . Core 1 | . . . . . . . . . . . 3 6 6 5 . . . . 6 . . . . . . . . . Reactor 2 | . . . . . . . . . . . . . . . 4 5 5 3 1 9 10 10 7 7 9 8 8 7 Treads 10 | . 27 28 22 22 22 22 26 27 27 27 10 . . . . . . . . . . . . . . . . . Hover 14 | . . . . . . . . . . . 10 20 20 28 29 29 34 32 29 26 26 26 23 25 20 25 26 27 Device 10 | . 2 . . . . . 4 13 10 9 13 13 13 16 15 17 13 4 7 14 15 15 15 11 15 16 16 12 Storage 6 | . 14 14 11 11 11 11 9 9 9 9 5 6 6 5 5 5 5 5 5 5 5 5 5 4 4 4 4 4 Processor 5 | . . . 10 11 11 11 . . . . 2 6 9 7 5 5 5 5 6 15 15 15 15 7 4 6 4 8 Hackware 5 | . . . . . . . 10 1 7 9 6 6 2 1 4 . 4 17 16 . . . . 10 7 6 8 . Protection 2 | . 11 14 . . . . 1 3 . . 1 . . . . 5 3 . . . . . . 2 4 4 4 6 Ballistic Gun 16 | . 27 26 43 44 44 41 35 10 . . 8 23 23 5 8 17 23 20 19 20 20 4 18 12 . . . 10 Ballistic Cannon 8 | . . . . . . . . 24 33 35 17 . 1 16 13 3 . . . . . . . 5 11 5 7 3 Peak Build Rating 219 | 9 10 16 22 22 23 22 34 47 43 43 85 82 85 82 99 103 107 105 122 121 124 124 125 168 200 212 205 219 Average Rating 89 | 6 8 10 16 22 22 22 30 37 41 41 65 79 75 74 88 98 105 98 113 117 120 94 112 144 178 197 202 192 On Entrance 79 | . 9 10 11 22 22 22 22 32 43 30 41 79 79 61 81 96 103 105 56 121 119 123 124 113 168 198 200 204 Naked Turns . | . . . . . . . . . . . . . . . . . . . . . . . . . . . . . Heaviest Build 119 | 13 36 36 40 40 40 40 52 53 50 61 61 55 53 59 70 74 76 68 76 75 75 70 72 110 108 119 118 117 Greatest Support 139 | 40 40 40 43 43 43 43 60 60 60 60 130 49 58 59 74 74 76 65 76 76 75 75 75 112 113 125 139 139 Greatest Overweight (x) 5 | . 1 . . . . . . . . 1 5 1 1 1 1 1 1 1 1 . . . 1 1 1 1 . 1 Average Overweight (x) . | . . . . . . . . . . . . . . . . . . . . . . . . . . . . . Largest Inventory Capacity 20 | 8 15 15 15 15 15 15 15 15 15 15 15 15 20 15 15 15 15 15 15 15 15 15 15 15 15 15 15 15 Average Capacity 14 | 7 13 15 15 15 15 15 15 15 15 15 14 15 15 15 15 15 15 15 15 15 15 15 15 15 15 15 15 15 Most Carried 15 | . 15 15 15 15 15 15 15 15 15 15 15 15 15 15 15 15 15 15 15 15 15 15 15 15 15 15 15 15 Average Carried 14 | . 9 14 14 15 14 15 14 14 15 14 14 14 14 14 14 14 14 14 14 13 14 14 12 14 14 14 14 14 Final Capacity 15 | 8 15 15 15 15 15 15 15 15 15 15 15 15 15 15 15 15 15 15 15 15 15 15 15 15 15 15 15 15 Final Carried 15 | . 15 15 15 15 15 15 15 15 15 15 15 15 15 15 15 15 15 15 15 15 15 15 15 15 15 15 15 15 Class Distribution -------------------- 32% | Scavenger-Gunner 26% | Gunner 12% | Hacker-Gunner 8% | Mutant 6% | Hacker-Mutant 5% | Scavenger-Tank 3% | Hacker-Tank Dominant Class ---------------- Mutant | -10/Materials Mutant | -10/Mines Scavenger-Gunner | -9/Materials Gunner | -9/Mines Gunner | -9/Exiles Gunner | -8/Mines Hacker-Gunner | -8/Materials Gunner | -8/Storage Gunner | -8/Recycling Gunner | -8/Scraptown Gunner | -6/Factory Gunner | -6/Waste Gunner | -6/Factory Scavenger-Gunner | -5/Factory Commander-Gunner | -5/Extension Scavenger-Gunner | -5/Cetus Scavenger-Gunner | -5/Archives Scavenger-Gunner | -5/Hub_04(d) Scavenger-Gunner | -4/Factory Scavenger-Gunner | -4/Upper Caves Scavenger-Gunner | -4/Upper Caves Mutant | -4/Zhirov Scavenger-Gunner | -3/Proximity Caves Scavenger-Gunner | -3/Research Hacker-Tank | -3/Quarantine Hacker-Mutant | -2/Research Hacker-Mutant | -2/Testing Scavenger-Gunner | -2/Protoforge Resources | -11 -10 -10 -9 -9 -9 -8 -8 -8 -8 -8 -6 -6 -6 -5 -5 -5 -5 -5 -4 -4 -4 -4 -3 -3 -3 -2 -2 -2 ----------- Run | Yrd Mat Min Mat Min Exi Min Mat Sto Rec Scr Fac Was Fac Fac Ext Cet Arc Hub Fac Upp Upp Zhi Pro Res Qua Res Tes Frg Matter Collected 42985 | 344 276 383 1479 104 40 19 2238 1250 189 100 5515 934 2946 872 2596 433 703 1516 3554 585 347 . 545 3139 1496 1612 937 8833 Remotely 7370 | . . . . . . . . . . . 2522 934 1234 872 343 127 . . 66 . 47 . . 601 294 320 . 10 Salvage Created 43005 | 180 579 357 2388 233 . 19 2879 1587 457 . 4871 1135 3517 704 2110 275 762 2316 4183 173 186 . 304 1531 1090 2464 648 8057 Parts 1884 | 14 44 19 128 7 . 3 151 91 23 . 211 1 156 20 71 15 50 103 195 7 12 . 7 54 37 107 34 324 Haulers Intercepted 47 | . 1 . 6 . . . 6 6 . . 4 . 4 1 1 . . 3 6 . . . . 1 1 6 . 1 Recyclers Shooed 35 | 1 1 1 4 . . . 2 4 . . 8 . 6 3 2 . . . 2 . . . . . . . 1 . Parts Field Recycled . | . . . . . . . . . . . . . . . . . . . . . . . . . . . . . Retrieved Matter . | . . . . . . . . . . . . . . . . . . . . . . . . . . . . . Parts Self-Destructed 20 | . . . . . . . . . . . . . . . . . . . . 7 7 . 6 . . . . . Prevented . | . . . . . . . . . . . . . . . . . . . . . . . . . . . . . Kills | -11 -10 -10 -9 -9 -9 -8 -8 -8 -8 -8 -6 -6 -6 -5 -5 -5 -5 -5 -4 -4 -4 -4 -3 -3 -3 -2 -2 -2 ------- Run | Yrd Mat Min Mat Min Exi Min Mat Sto Rec Scr Fac Was Fac Fac Ext Cet Arc Hub Fac Upp Upp Zhi Pro Res Qua Res Tes Frg Combat Hostiles Destroyed 589 | . 16 8 34 2 . 3 50 19 4 . 69 6 34 8 18 3 4 20 50 3 7 . 8 24 20 30 10 139 Melee 11 | . . . . . . . . . . . . . . . . . . . . . . . . . 1 7 2 1 Guns 260 | . 11 3 24 2 . 1 40 4 . . 15 4 22 2 2 2 4 15 42 3 2 . 4 5 . . . 53 Cannons 124 | . . . . . . . . 11 4 . 41 . . 2 11 1 . . . . . . . 7 19 3 4 21 AOE 194 | . 5 5 10 . . 2 10 4 . . 13 2 12 4 5 . . 5 8 . 5 . 4 12 . 20 4 64 Classes Destroyed 32 | 3 6 . 3 1 . . 4 . 1 . . 1 . . . . 1 . 1 . . . . 2 . 1 . 8 Worker 46 | 2 1 . 5 1 . . 4 1 . . 10 . 5 1 2 . . 8 2 . . . . . . 4 . . Builder 34 | . 2 . 2 . . . 3 1 1 . 8 . 4 . 3 . . 8 1 . . . . . . . 1 . Tunneler 14 | 5 . . 1 1 . . . . . . . . . . 4 . . 1 . . . . . . . 2 . . Hauler 49 | . 1 . 6 . . . 6 6 . . 4 . 4 1 1 . . 3 6 . . . . 1 1 6 . 3 Recycler 85 | 1 1 3 9 1 . . 5 7 3 . 15 . 11 4 8 . . 3 3 . . . . 2 1 6 2 . Carrier 1 | . . . . . . . . . . . . . . . . . . . . . . . . . . . . 1 Mechanic 20 | . . . 3 . . . . . . . 1 . 2 . . . . 1 1 . . . . 1 . . . 11 Operator 25 | . . . . . . . 2 2 . . 2 . 2 1 . . 9 3 . . . . . 1 . 1 . 2 Drone 13 | . . . . . . . . . . . . . . . . . . . . . . . . . . . . 13 Watcher 41 | . 2 . 4 . . . 5 2 . . 4 . 3 1 . 1 . 3 5 . . . . 2 . 5 2 2 Swarmer 131 | . 8 6 11 . . 3 9 4 . . 11 . 6 5 2 . . . 9 . 5 . 1 7 . 17 4 23 Cutter 3 | . . . . . . . . . . . . . . . . . . . . . . . . . . 3 . . Saboteur 2 | . . . . . . . . . . . . . . . . . . . 1 . . . . . . . . 1 Grunt 195 | . 7 2 17 1 . . 25 9 . . 37 . 11 . 7 . . 6 18 . 1 . 6 6 12 2 1 27 Brawler 12 | . . . . 1 . . 2 . . . 1 . 1 . . . . 2 1 . . . . . . . 1 3 Duelist 17 | . . . 1 . . . 2 . 1 . 3 . 1 . . . . 1 2 . . . . . . . . 6 Protector 6 | . . . . . . . 1 . . . 1 . . . . . . . 2 . . . . . . . . 2 Sentry 62 | . . . 7 . . . 8 5 1 . 3 . 6 1 6 . 4 4 2 1 1 . . 3 3 4 . 3 Demolisher 1 | . . . . . . . . . . . . . . . . . . . . . . . . . . . . 1 Specialist 8 | . . . . . . . 2 . . . 3 . . . . . . 2 . . . . . . . . . 1 Hunter 38 | . . . . . . . 1 1 1 . 4 . 4 . 1 . . 3 4 . . . . 3 . 2 . 14 Programmer 56 | . . . . . . . . . 1 . 6 . 5 2 2 . . 2 12 2 . . 1 2 5 2 4 10 Compactor 6 | . . . . . . . . . . . . 6 . . . . . . . . . . . . . . . . Cetus Guard 3 | . . . . . . . . . . . . . . . . 3 . . . . . . . . . . . . Enhanced Grunt 1 | . . . . . . . . . . . . . . . . 1 . . . . . . . . . . . . Hotshot 3 | . . . . . . . . . . . . . . . . . . . . . . . . . . . . 3 Decapitator 2 | . . . . . . . . . . . . . . . . . . . . . . . . . . . . 2 Overlord 1 | . . . . . . . . . . . . . . . . . . . . . . . . . . . . 1 Striker 15 | . . . . . . . . . . . . . . . . . . . . . . . . 3 . . . 12 Executioner 16 | . . . . . . . . . . . . . . . . . . . . . . . . . . . . 16 Alpha 7 1 | . . . . . . . . . . . . . . . . . . . . . . . . . . . . 1 Subdweller 1 | . 1 . . . . . . . . . . . . . . . . . . . . . . . . . . . Scrapper 2 | . . . . . . . . . . . . . . . . . . . . . . . . . . . . 2 Elite 5 | . . . . . . . . . . . . . . . . . . . . . . . . . . . . 5 Scrapoid 1 | . . . . . . . . . . . . . . . . . 1 . . . . . . . . . . . Savage 1 | . . . . . . . . . . . . . . . 1 . . . . . . . . . . . . . Butcher 2 | . . . . . . . . . . . . . . . 2 . . . . . . . . . . . . . Revision 1 | . . . . . . . . . . . . . . . . . . . . . . . . 1 . . . . Best Kill Streak 14 | 2 7 5 10 2 . 3 9 8 3 . 10 2 9 5 14 2 5 14 7 2 4 . 5 12 4 9 5 14 Combat Bots Only 14 | . 3 3 9 2 . 3 5 4 3 . 8 2 5 5 5 2 4 4 6 2 4 . 5 11 4 6 4 14 Max Kills in Single Turn 8 | 1 2 3 4 1 . 2 4 2 1 . 4 2 4 4 4 1 2 8 4 1 3 . 2 4 3 5 4 5 Gunslinging 1 | . 1 . 1 . . . 1 . . . . 1 1 . . . . 1 1 . . . . . . . . 1 Exploded 5 | . 2 2 3 . . 2 3 1 . . 4 1 3 4 2 . . 2 4 . 3 . 2 4 . 5 3 5 Melee 1 | . . . . . . . . . . . . . . . . . . . . . . . . . 1 1 1 1 Uniques/NPCs Destroyed . | . . . . . . . . . . . . . . . . . . . . . . . . . . . . . Combat | -11 -10 -10 -9 -9 -9 -8 -8 -8 -8 -8 -6 -6 -6 -5 -5 -5 -5 -5 -4 -4 -4 -4 -3 -3 -3 -2 -2 -2 -------- Run | Yrd Mat Min Mat Min Exi Min Mat Sto Rec Scr Fac Was Fac Fac Ext Cet Arc Hub Fac Upp Upp Zhi Pro Res Qua Res Tes Frg Hostile Shots Fired 2741 | . 59 16 71 4 . 4 160 56 . . 396 . 306 47 43 14 11 101 186 28 20 . 62 142 143 165 62 645 Missed 1071 | . 16 4 19 1 . 1 40 22 . . 144 . 140 24 20 4 4 32 72 13 11 . 23 62 67 49 20 283 Hits 1670 | . 43 12 52 3 . 3 120 34 . . 252 . 166 23 23 10 7 69 114 15 9 . 39 80 76 116 42 362 Melee 22 | . . . 1 2 . . . 1 . . 2 . 1 . . . . . . . . . . 9 . 3 . 3 Projectile 1648 | . 43 12 51 1 . 3 120 33 . . 250 . 165 23 23 10 7 69 114 15 9 . 39 71 76 113 42 359 AOE 5 | . . . . . . . . . . . . . . . . . . . . . . . . 2 . 2 . 1 Critical Strikes 98 | . . . . . . . 3 . . . 14 . 3 1 3 1 . 9 14 2 1 . 3 8 8 4 5 19 Actively Blocked 27 | . . . . . . . . . . . . . . . . . . . . . . . . 4 . 1 5 17 Part Disruptions 5 | . . . . . . . . . . . . . . . . . . . . . . . . . 2 2 1 . Damage Taken 34022 | . 493 100 722 75 . 27 1676 433 . . 4214 . 2387 432 438 305 183 1715 2945 309 121 . 780 2291 1586 2500 693 9597 Core 4006 | . 77 33 95 28 . 10 139 54 . . 631 . 178 77 . 81 24 482 465 43 . . 76 225 60 163 64 1001 Absorbed by Shields 1835 | . . . . . . . 187 42 . . . . . . 107 12 . . . . . . . . 64 624 354 445 Redirected to Shielding 525 | . . . . . . . 30 45 . . 190 . . . . . . . . . . . . . . . . 260 Ignored by Resistances 7 | . . . . . . . . . . . . . . 7 . . . . . . . . . . . . . . Regen/Repaired (Parts) 7838 | . . . 61 . . . 846 119 . . 379 . 216 . 92 80 21 . 884 . . . . 740 405 1432 590 1973 Core Remaining (%) 55 | 100 . 56 . . . 66 . . . 64 . . 4 . . . . 33 . . . . 49 . 73 . . . Volleys Fired 1615 | 37 59 11 87 8 . 2 140 63 8 . 211 35 114 37 66 16 29 71 129 8 14 . 17 67 51 36 25 274 Largest 4 | 2 2 2 4 4 . 3 4 4 4 . 4 4 4 4 4 4 4 4 4 4 4 . 4 4 4 2 2 4 Hottest 412 | 40 60 60 106 92 . 69 109 148 148 . 168 147 142 159 175 240 140 154 140 152 138 . 152 224 412 300 116 300 Shots Fired 5309 | 74 113 20 336 32 . 4 545 220 33 . 676 94 390 108 208 61 116 254 469 32 27 . 54 219 140 61 45 978 Gun 3682 | 74 108 16 331 32 . 3 534 94 . . 221 67 364 13 64 46 116 243 459 30 17 . 48 112 . . . 690 Cannon 1437 | . . . . . . . . 115 33 . 435 4 15 94 128 15 . 4 9 . 7 . 2 98 140 51 43 244 Launcher 179 | . 5 4 5 . . 1 11 11 . . 18 23 11 1 7 . . 7 1 2 3 . 4 9 . 10 2 44 Special 11 | . . . . . . . . . . . 2 . . . 9 . . . . . . . . . . . . . Kinetic 5108 | 74 108 16 331 32 . 3 534 209 33 . 656 71 379 107 192 60 116 247 468 30 24 . 50 210 137 50 43 928 Thermal 11 | . . . . . . . . . . . . . . . . 1 . . . . . . . . 3 1 . 6 Explosive 161 | . 5 4 5 . . 1 11 . . . 11 23 11 1 7 . . 7 1 2 3 . 4 9 . 10 2 44 Electromagnetic 18 | . . . . . . . . 11 . . 7 . . . . . . . . . . . . . . . . . Robot Hit Streak 28 | 12 17 4 12 13 . 15 16 18 4 . 28 13 12 12 17 12 12 17 13 5 10 . 14 15 8 6 4 12 Robot Miss Streak 26 | 3 8 1 6 1 . . 5 5 2 . 6 2 9 4 5 3 3 5 5 2 1 . 4 4 5 2 4 26 Penetration Max 3 | . . . . . . . . 1 . . 1 1 1 1 1 . 1 2 2 . 1 . 1 1 3 . . 2 Secondary Targets 30 | . 2 . 3 . . . 6 . . . 1 1 2 . . . . 2 5 . . . . 1 . . . 7 Max Gunslinging Chain 1 | . 1 . 1 . . . 1 . . . 1 1 1 . . . . 1 1 . . . . 1 . . . 1 Shots Hit Robots 2851 | 45 67 11 184 21 . 2 327 113 10 . 346 57 184 57 132 38 61 144 255 18 12 . 27 124 72 80 28 436 Core Hits 1616 | 15 35 14 97 7 . 5 138 55 9 . 194 14 130 27 74 15 28 86 144 9 10 . 15 57 29 52 17 340 Critical Kills 84 | . . . 2 . . . 2 1 . . 2 1 6 . 11 1 4 1 26 1 1 . 3 3 1 . . 18 Critical Parts Destroyed 118 | 1 1 1 2 . . . 3 2 . . 10 . 9 . 9 1 2 9 25 3 1 . 4 5 6 . . 24 Critical Strikes 270 | 1 1 1 4 . . . 5 4 . . 26 1 16 7 30 3 8 13 52 4 2 . 7 12 12 8 2 51 Destroy 214 | 1 1 1 4 . . . 5 3 . . 12 1 15 . 22 2 8 13 52 4 2 . 7 10 7 1 . 43 Blast 51 | . . . . . . . . 1 . . 14 . 1 7 8 1 . . . . . . . 2 5 2 2 8 Sever 5 | . . . . . . . . . . . . . . . . . . . . . . . . . . 5 . . Melee Attacks 117 | . . . . . . . . . . . . . . . . . . . . . . . . . 10 61 36 10 Kinetic 10 | . . . . . . . . . . . . . . . . . . . . . . . . . 10 . . . Impact . | . . . . . . . . . . . . . . . . . . . . . . . . . . . . . Slashing 107 | . . . . . . . . . . . . . . . . . . . . . . . . . . 61 36 10 Piercing . | . . . . . . . . . . . . . . . . . . . . . . . . . . . . . Sneak Attacks 19 | . . . . . . . . . . . . . . . . . . . . . . . . . . 16 2 1 Combat Hostiles . | . . . . . . . . . . . . . . . . . . . . . . . . . . . . . Follow-up Attacks . | . . . . . . . . . . . . . . . . . . . . . . . . . . . . . Damage Inflicted 132134 | 359 1015 542 3276 330 . 98 6151 2943 348 . 13048 6008 7301 2282 5602 1096 1512 7270 9508 686 953 . 1823 6417 4886 10082 2684 35914 Guns 52273 | 359 769 191 2553 330 . 33 5293 989 . . 3017 1090 4172 232 1152 842 1512 4894 8663 515 343 . 695 2116 . . . 12513 Cannons 28064 | . . . . . . . . 1381 348 . 7173 78 111 1577 2216 254 . . . . . . . 2488 4790 1450 868 5330 Explosions 45152 | . 246 351 719 . . 65 858 573 . . 2844 4840 3018 473 2234 . . 2376 845 171 610 . 1128 1813 . 3457 773 17758 Melee 6627 | . . . . . . . . . . . . . . . . . . . . . . . . . 96 5175 1043 313 Ramming 18 | . . . 4 . . . . . . . 14 . . . . . . . . . . . . . . . . . Kinetic 78683 | 359 769 191 2553 330 . 33 5293 2370 348 . 10190 1168 4283 1809 3368 1096 1512 4894 8663 515 343 . 695 4604 3336 1250 868 17843 Thermal 2859 | . . . 30 . . . . 59 . . 308 . 451 40 . . . . 221 . . . . . 1550 200 . . Explosive 41954 | . 246 351 689 . . 65 858 . . . 1880 4840 2532 433 2234 . . 1492 624 171 610 . 1128 1813 . 3457 773 17758 Electromagnetic 2089 | . . . . . . . . 514 . . 656 . 35 . . . . 884 . . . . . . . . . . Impact . | . . . . . . . . . . . . . . . . . . . . . . . . . . . . . Slashing 6531 | . . . . . . . . . . . . . . . . . . . . . . . . . . 5175 1043 313 Piercing . | . . . . . . . . . . . . . . . . . . . . . . . . . . . . . Highest Corruption 39 | . . . . . . . . 1 1 . 3 36 39 2 3 . 4 35 2 6 6 6 6 2 5 6 14 22 Average Corruption 9 | . . . . . . . . 1 1 . 2 17 36 1 2 . 3 6 1 5 6 6 6 1 3 3 9 18 Corruption Purged 13 | . . . . . . . . . . . . . 4 . 3 . 4 . . . . . . 2 . . . . Corruption Blocked . | . . . . . . . . . . . . . . . . . . . . . . . . . . . . . Effects 530 | . . . . . . . . 4 3 . 43 18 119 3 12 . 3 3 20 11 10 2 17 1 10 27 29 195 Message Errors 103 | . . . . . . . . . . . 9 5 24 . 3 . . 1 6 3 3 . 1 . 4 4 7 33 Matter Fused 101 | . . . . . . . . 1 2 . 7 4 16 . 4 . 1 . 4 3 1 1 6 . 1 5 7 38 Heat Flow Errors 50 | . . . . . . . . 1 . . 6 1 8 . 2 . . . 4 . . . 3 . 1 1 3 20 Energy Discharges 56 | . . . . . . . . 1 . . 3 1 8 . 2 . . . 2 1 2 . 3 . . 9 4 20 Parts Rejected 5 | . . . . . . . . . . . 1 . 1 . . . . . . . . . . . . . 2 1 Parts Fused 3 | . . . . . . . . . . . . 1 . . . . . . . . . . . . . . . 2 Data Loss (minor) 49 | . . . . . . . . 1 . . 6 1 12 1 . . 1 1 3 . . 1 2 1 2 3 4 10 Data Loss (major) 24 | . . . . . . . . . . . 5 1 2 1 1 . . 1 . 2 2 . . . . . 1 8 Misfires 15 | . . . . . . . . . 1 . 4 . 3 . . . . . . . 1 . 2 . 1 3 . . Alerts 12 | . . . . . . . . . . . . . 2 . . . 1 . . 2 1 . . . . 1 . 5 Misdirections 32 | . . . . . . . . . . . . . 11 . . . . . . . . . . . . . 1 20 Weapon Failures 80 | . . . . . . . . . . . 2 4 32 1 . . . . 1 . . . . . 1 1 . 38 Overload Shots 1 | . . . . . . . . . . . . . . . . 1 . . . . . . . . . . . . Overflow Damage 6460 | . 5 30 13 . . 7 13 33 57 . 287 . 147 178 146 . . 133 6 16 135 . 27 232 733 1943 451 1868 Projectiles 1727 | . . . . . . . . 7 57 . 232 . . 138 19 . . . . . . . . 155 733 124 7 255 Explosions 2870 | . 5 30 13 . . 7 13 26 . . 55 . 147 40 127 . . 133 6 16 135 . 27 77 . 368 118 1527 Melee 1863 | . . . . . . . . . . . . . . . . . . . . . . . . . . 1451 326 86 Knockbacks 168 | . . . . . . . . 9 2 . 74 . 1 11 8 . . . . . . . . 15 20 6 2 20 Impact . | . . . . . . . . . . . . . . . . . . . . . . . . . . . . . Kinetic 161 | . . . . . . . . 9 2 . 68 . 1 11 8 . . . . . . . . 14 20 6 2 20 Secondary 7 | . . . . . . . . . . . 6 . . . . . . . . . . . . 1 . . . . Self-Inflicted Damage 872 | . . . 18 . . . . 6 . . 48 . 106 . . . . 96 134 . . . . 37 . 282 49 96 Shots 15 | . . . 1 . . . . 1 . . 3 . 1 . . . . 1 2 . . . . 1 . 3 1 1 Rammed 4 | . . . 1 . . . . . . . 3 . . . . . . . . . . . . . . . . . Targets Rammed 4 | . . . 1 . . . . . . . 3 . . . . . . . . . . . . . . . . . Kicked . | . . . . . . . . . . . . . . . . . . . . . . . . . . . . . Crushed . | . . . . . . . . . . . . . . . . . . . . . . . . . . . . . Highest Temperature 340 | . 48 18 128 104 . 24 329 177 48 . 179 223 242 259 268 196 72 75 340 36 27 . 251 90 214 184 235 311 Average Temperature 51 | . 11 8 33 38 . 12 60 43 29 . 27 123 76 42 45 33 15 20 73 18 14 . 94 27 32 87 115 65 Received Heat Transfer 4827 | . 84 15 255 6 . . 648 162 . . 1254 . 399 72 121 . 18 189 471 . 36 . 202 81 259 77 . 478 Effects 9 | . . . . . . . 2 . . . . . . . . . . . 7 . . . . . . . . . Shutdowns 1 | . . . . . . . 1 . . . . . . . . . . . . . . . . . . . . . Energy Bleed 1 | . . . . . . . 1 . . . . . . . . . . . . . . . . . . . . . Interference 7 | . . . . . . . . . . . . . . . . . . . 7 . . . . . . . . . Siege Activations . | . . . . . . . . . . . . . . . . . . . . . . . . . . . . . Martial Activations . | . . . . . . . . . . . . . . . . . . . . . . . . . . . . . Shielding Activations . | . . . . . . . . . . . . . . . . . . . . . . . . . . . . . Robots Disrupted 2 | . . . . . . . . . . . . . 2 . . . . . . . . . . . . . . . Combat Hostiles 1 | . . . . . . . . . . . . . 1 . . . . . . . . . . . . . . . Robots Corrupted 2 | . . . . . . . . 1 . . 1 . . . . . . . . . . . . . . . . . Combat Hostiles . | . . . . . . . . . . . . . . . . . . . . . . . . . . . . . Parts Fried 10 | . . . . . . . . 2 . . 1 . . . . . . 6 . . . . . . . . . 1 Impact Corruptions 1 | . . . . . . . . . . . 1 . . . . . . . . . . . . . . . . . Robots Melted . | . . . . . . . . . . . . . . . . . . . . . . . . . . . . . Combat Hostiles . | . . . . . . . . . . . . . . . . . . . . . . . . . . . . . Parts Melted 2 | . . . . . . . . . . . . . . . 1 . . . . . . . . . . . 1 . Heat Transferred 900 | . . . 50 . . . . 100 . . 250 . 250 50 . . . . 200 . . . . . . . . . Parts Sabotaged . | . . . . . . . . . . . . . . . . . . . . . . . . . . . . . Parts Stolen . | . . . . . . . . . . . . . . . . . . . . . . . . . . . . . Parts Stripped . | . . . . . . . . . . . . . . . . . . . . . . . . . . . . . Power Chain Reactions 13 | . . . . . . . . 4 . . 3 . 2 1 . . . 2 . . 1 . . . . . . . Alert | -11 -10 -10 -9 -9 -9 -8 -8 -8 -8 -8 -6 -6 -6 -5 -5 -5 -5 -5 -4 -4 -4 -4 -3 -3 -3 -2 -2 -2 ------- Run | Yrd Mat Min Mat Min Exi Min Mat Sto Rec Scr Fac Was Fac Fac Ext Cet Arc Hub Fac Upp Upp Zhi Pro Res Qua Res Tes Frg Maximum Alert Level 5 | . 1 1 3 2 . . 3 2 1 . 5 3 5 4 5 4 3 4 5 . . . . 3 4 5 4 5 Low Security (%) 14 | 100 95 97 1 31 . 100 18 . 86 . 17 . . . . . . . . . . . . 13 . . . . Level 1 14 | . 4 2 42 66 . . 28 44 13 . 11 . . . . . . 16 . . . . . 31 . . . . Level 2 18 | . . . 42 1 . . 23 55 . . 2 . 11 . 7 . 91 58 8 . . . . 43 48 28 . . Level 3 20 | . . . 12 . . . 29 . . . 34 100 27 27 41 . 8 14 8 . . . . 11 49 59 39 4 Level 4 12 | . . . . . . . . . . . 6 . 38 72 18 100 . 10 44 . . . . . 2 7 60 6 Level 5 17 | . . . . . . . . . . . 27 . 19 . 32 . . . 23 . . . . . . . . 88 High Security 1 | . . . . . . . . . . . . . 1 . . . . . 15 . . . . . . 4 . . Max Security . | . . . . . . . . . . . . . . . . . . . . . . . . . . . . . Sterilizations 1 | . . . . . . . 1 . . . . . . . . . . . . . . . . . . . . . Peak Influence 6360 | 10 214 203 966 402 . 91 833 534 229 . 2419 892 2163 1364 2287 1354 704 1438 3041 . . . . 906 1147 1797 1401 6360 Initial 1268 | . . 78 47 372 . . 27 350 204 . . 846 603 1100 665 1268 529 227 661 . . . . 9 504 641 1100 780 Average 1128 | 1 57 126 485 257 . 79 453 412 93 . 1045 870 1252 1175 1253 1307 667 621 1536 . . . . 417 773 874 1139 4122 Influence Increases 32126 | 40 542 235 1538 65 . 91 1554 768 159 . 3421 176 2156 478 2546 296 291 1666 3242 85 180 . 285 1647 1071 1746 973 6875 Destroy 0b10 Robot/C 12560 | . 300 160 800 40 . 60 980 380 100 . 1460 . 680 160 980 160 80 440 1020 60 140 . 160 480 400 600 200 2720 Destroy 0b10 Robot/NC 1725 | 40 35 15 160 15 . . 130 105 40 . 230 . 155 40 110 10 45 150 100 . . . . 35 10 120 25 155 Destroy Leader 2382 | . 66 30 202 10 . 10 222 116 . . 298 . 192 34 132 . . 142 202 10 10 . 20 106 22 130 34 394 Allied During Kill 1856 | . . . 74 . . . 3 3 5 . 24 . . . 919 85 59 79 15 . . . . . . . . 590 Trap Triggered on 0b10 150 | . . . . . . . . . . . . . . . . . . . 40 . . . . . . . . 110 Successful Hack 1201 | . 44 . 53 . . . 41 49 8 . 78 . 26 4 11 . . 26 152 . . . . 171 46 149 168 175 Select Force Hacks 230 | . 60 . 90 . . . 60 . . . . . . . . . . . . . . . . 20 . . . . Disable Machine 3165 | . 15 . 90 . . 15 15 75 . . 690 . 420 . 45 15 75 300 270 . . . . 105 150 75 165 645 Anti-Garrison Action 350 | . . . . . . . . . . . . . . . . . . . . . . . . 200 . . . 150 Destroy Structure 4517 | . 22 30 69 . . 6 88 40 6 . 341 176 263 90 304 26 32 484 468 . . . . 260 128 432 126 1126 Partial Spotted 525 | . . . . . . . . . . . 15 . 90 . 45 . . 15 135 . . . . 45 30 . 60 90 Lose Combat Pursuer 3465 | . . . . . . . 15 . . . 285 . 330 150 . . . 30 840 15 30 . 105 225 285 240 195 720 Influence Decreases 25904 | 40 342 312 707 900 119 20 795 1073 684 . 1002 1733 855 1324 1637 1239 965 965 1552 1336 547 1423 270 766 826 1090 1471 1911 Entered New Map 13464 | . . 122 76 582 119 . 44 480 321 . . 1573 259 1104 693 999 795 423 690 1126 341 1423 . 6 392 500 787 609 Time Decay 9591 | 40 342 190 601 318 . 20 681 583 356 . 622 160 506 180 474 160 160 342 642 190 206 . 240 598 404 490 374 712 Lost Part 912 | . . . . . . . 50 . . . 50 . 90 40 20 . 10 150 100 20 . . 30 62 20 30 . 240 Lost Ally 1180 | . . . 30 . . . 20 10 . . 180 . . . 300 80 . 50 120 . . . . 100 10 70 10 200 Purge Threat 757 | . . . . . . . . . 7 . 150 . . . 150 . . . . . . . . . . . 300 150 Squads Dispatched 182 | . 4 . 5 . . . 9 8 . . 32 . 23 4 10 . . 7 35 . . . . 13 5 10 8 9 Investigation 62 | . 3 . 4 . . . 4 2 . . 12 . 9 . 2 . . . 8 . . . . 7 . 3 3 5 Extermination 29 | . . . . . . . . . . . 7 . 5 . . . . 1 5 . . . . . 3 4 4 . Reinforcement 42 | . 1 . . . . . 3 3 . . 6 . 4 3 3 . . 5 3 . . . . 6 1 1 . 3 Assault 38 | . . . 1 . . . 2 . . . 3 . 1 1 5 . . 1 19 . . . . . 1 2 1 1 Garrison 11 | . . . . . . . . 3 . . 4 . 4 . . . . . . . . . . . . . . . Intercept . | . . . . . . . . . . . . . . . . . . . . . . . . . . . . . Searches Triggered . | . . . . . . . . . . . . . . . . . . . . . . . . . . . . . Construction Impeded 13 | . . . . . . . . 1 . . 4 . 2 1 1 . . 2 2 . . . . . . . . . Haulers Reinforced 8 | . . . . . . . . . . . 1 . 1 1 . . . 1 1 . . . . 2 1 . . . Active Scanning Responses . | . . . . . . . . . . . . . . . . . . . . . . . . . . . . . Cargo Convoy Interrupts 1 | . . . . . . . . . . . 1 . . . . . . . . . . . . . . . . . Stealth | -11 -10 -10 -9 -9 -9 -8 -8 -8 -8 -8 -6 -6 -6 -5 -5 -5 -5 -5 -4 -4 -4 -4 -3 -3 -3 -2 -2 -2 --------- Run | Yrd Mat Min Mat Min Exi Min Mat Sto Rec Scr Fac Was Fac Fac Ext Cet Arc Hub Fac Upp Upp Zhi Pro Res Qua Res Tes Frg Distress Signals 58 | . 2 . 3 . . . 2 . . . 5 . 2 . 5 2 . 3 4 . . . . 2 2 6 3 17 Communications Jammed . | . . . . . . . . . . . . . . . . . . . . . . . . . . . . . Distress Signals . | . . . . . . . . . . . . . . . . . . . . . . . . . . . . . Times Spotted 1213 | . 35 8 48 2 . 3 66 32 3 . 124 6 65 27 62 10 14 38 122 4 4 . 17 54 47 63 38 321 Peak Tracking Total 20 | . 7 3 9 2 . 3 8 7 1 . 15 3 11 12 18 5 1 9 20 3 3 . 6 8 8 10 8 16 Tactical Retreats 104 | . 1 . . . . . 1 . . . 10 . 13 3 . . . 2 15 1 2 . 4 5 6 8 4 29 Traps | -11 -10 -10 -9 -9 -9 -8 -8 -8 -8 -8 -6 -6 -6 -5 -5 -5 -5 -5 -4 -4 -4 -4 -3 -3 -3 -2 -2 -2 ------- Run | Yrd Mat Min Mat Min Exi Min Mat Sto Rec Scr Fac Was Fac Fac Ext Cet Arc Hub Fac Upp Upp Zhi Pro Res Qua Res Tes Frg Traps Triggered 37 | . 2 . 1 . . . 2 1 . . 3 . 7 . 1 . . 4 7 . . . . . 2 2 . 5 Indirectly 3 | . . . . . . . . 1 . . 1 . 1 . . . . . . . . . . . . . . . Trap Hack Attempts . | . . . . . . . . . . . . . . . . . . . . . . . . . . . . . Triggered . | . . . . . . . . . . . . . . . . . . . . . . . . . . . . . Disarmed 12 | . . . . . . . . . . . . . . . . . . . . . . . . . . . 12 . Reprogrammed 19 | . . . . . . . . . . . . . . . . . . 3 4 . . . . . . . . 12 Reused 15 | . . . . . . . . . . . . . . . . . . . 4 . . . . . . . . 11 Traps Extracted . | . . . . . . . . . . . . . . . . . . . . . . . . . . . . . Installed . | . . . . . . . . . . . . . . . . . . . . . . . . . . . . . Triggered 15 | . . . . . . . . . . . . . . . . . . . 4 . . . . . . . . 11 Machines | -11 -10 -10 -9 -9 -9 -8 -8 -8 -8 -8 -6 -6 -6 -5 -5 -5 -5 -5 -4 -4 -4 -4 -3 -3 -3 -2 -2 -2 ---------- Run | Yrd Mat Min Mat Min Exi Min Mat Sto Rec Scr Fac Was Fac Fac Ext Cet Arc Hub Fac Upp Upp Zhi Pro Res Qua Res Tes Frg Machines Disabled 216 | . 1 . 6 . . 1 1 5 . . 46 . 28 . 5 1 5 20 18 . . . . 7 10 5 11 46 Max in Single Turn 7 | . 1 . 2 . . 1 1 1 . . 3 . 3 . 1 1 1 6 4 . . . . 2 1 2 1 7 Garrison Access 7 | . . . . . . . . . . . 2 . . . . . . . 1 . . . . 2 . . 1 1 Network Hub 1 | . . . . . . . . . . . . . . . . . . 1 . . . . . . . . . . Energy Cycler 1 | . . . . . . . . . . . . . . . 1 . . . . . . . . . . . . . Machines Repaired . | . . . . . . . . . . . . . . . . . . . . . . . . . . . . . Machines Dismantled 3 | . . . . . . . . . . . . . . . . . . . . . . . . 3 . . . . Machines Sabotaged . | . . . . . . . . . . . . . . . . . . . . . . . . . . . . . Overloaded Fab Kills . | . . . . . . . . . . . . . . . . . . . . . . . . . . . . . Hacking | -11 -10 -10 -9 -9 -9 -8 -8 -8 -8 -8 -6 -6 -6 -5 -5 -5 -5 -5 -4 -4 -4 -4 -3 -3 -3 -2 -2 -2 --------- Run | Yrd Mat Min Mat Min Exi Min Mat Sto Rec Scr Fac Was Fac Fac Ext Cet Arc Hub Fac Upp Upp Zhi Pro Res Qua Res Tes Frg Machines Accessed 213 | . 10 1 15 . 1 . 14 9 10 1 23 . 16 4 7 . . 7 14 1 1 3 . 21 7 15 16 17 Terminals 107 | . 8 . 11 . . . 7 7 6 . 6 . 5 2 5 . . 7 4 . . . . 4 6 7 10 12 Fabricators 14 | . . . . . . . . . . . 3 . 1 1 . . . . 3 . . . . 3 . 2 1 . Repair Stations 21 | . . . 1 . . . 2 1 . . 2 . 4 . . . . . 2 . . . . 3 . 2 2 2 Recycling Units 36 | . 2 . 2 . . . 2 . 4 . 7 . 5 . 2 . . . 3 . . . . 4 . 2 . 3 Scanalyzers 17 | . . . 1 . . . 2 . . . 3 . . 1 . . . . . . . . . 5 1 2 2 . Garrison Access 10 | . . . . . . . 1 1 . . 2 . 1 . . . . . 2 . . . . 2 . . 1 . Total Hacks 881 | . 27 1 57 . 1 . 81 28 35 7 87 . 47 5 20 . . 32 106 1 1 13 . 94 29 61 63 85 Successful 563 | . 16 1 37 . 1 . 67 21 21 7 68 . 23 1 13 . . 17 73 1 1 13 . 67 20 32 29 34 Failed 316 | . 11 . 20 . . . 13 7 13 . 19 . 24 4 7 . . 15 33 . . . . 27 9 29 34 51 Catastrophic 36 | . 2 . 2 . . . 1 . 1 . . . 4 2 1 . . . 2 . . . . 2 1 6 3 9 Database Lockouts 2 | . . . . . . . 1 . 1 . . . . . . . . . . . . . . . . . . . Manual 510 | . 23 . 47 . . . 40 19 30 . 38 . 35 2 19 1 . 27 53 . . . . 29 12 25 38 72 Terminals 457 | . 22 . 39 . . . 30 18 26 . 19 . 17 2 16 . . 32 42 . . . . 19 19 38 52 66 Fabricators 46 | . . . . . . . . . . . 13 . 2 1 . . . . 12 . . . . 8 . 5 5 . Repair Stations 111 | . . . 3 . . . 24 5 . . 10 . 11 . . . . . 25 . . . . 18 . 3 3 9 Recycling Units 104 | . 5 . 8 . . . 8 . 9 . 15 . 16 . 4 . . . 15 . . . . 8 . 6 . 10 Scanalyzers 109 | . . . 7 . . . 17 . . . 27 . . 2 . . . . . . . . . 35 10 9 2 . Garrison Access 30 | . . . . . . . 2 5 . . 3 . 1 . . . . . 12 . . . . 6 . . 1 . Terminal Hacks 121 | . 1 1 5 . 1 . 5 3 5 7 3 . 4 1 5 . . 4 14 1 1 13 . 5 7 9 11 15 Record 7 | . . . . . 1 . . . . . . . . . . . . . . . . 5 . . 1 . . . Part Schematic 2 | . . . . . . . . . . . 1 . . . 1 . . . . . . . . . . . . . Robot Schematic 1 | . . . . . . . . . 1 . . . . . . . . . . . . . . . . . . . Robot Analysis 31 | . . . 4 . . . 3 1 1 7 . . 1 . 2 . . . 2 . . 4 . . 1 2 . 3 Prototype ID Bank 10 | . . . . . . . 1 . 1 . 1 . . . . . . . 2 . . 4 . 1 . . . . Open Door 6 | . . 1 . . . . . 1 . . . . . 1 . . . . . 1 1 . . . 1 . . . Open DSF 1 | . . . . . . . . . . . . . . . . . . . . . . . . 1 . . . . Level Access Points 2 | . . . . . . . . . . . . . . . . . . . . . . . . . 1 . . 1 Branch Access Points 3 | . . . . . . . . . . . . . 1 . . . . . 1 . . . . . . 1 . . Emergency Access Points 1 | . . . . . . . . . . . . . . . . . . . . . . . . . . . . 1 Machine Index 1 | . . . . . . . . . . . . . . . . . . . . . . . . . . . 1 . Terminal Index 10 | . 1 . 1 . . . . . . . . . . . 1 . . 1 1 . . . . 1 1 1 1 1 Fabricator Index 1 | . . . . . . . . . . . . . . . . . . . 1 . . . . . . . . . Recycling Unit Index 2 | . . . . . . . . . . . . . . . . . . . . . . . . 1 . . . 1 Scanalyzer Index 1 | . . . . . . . . . . . . . . . . . . . 1 . . . . . . . . . Alert Level 1 | . . . . . . . . . 1 . . . . . . . . . . . . . . . . . . . Unreport Threat 6 | . . . . . . . . . 1 . 1 . . . 1 . . . . . . . . . . . 2 1 Locate Traps 6 | . . . . . . . . 1 . . . . 1 . . . . . 1 . . . . 1 1 . . 1 Disarm Traps 2 | . . . . . . . . . . . . . . . . . . . . . . . . . . . 2 . Reprogram Traps 4 | . . . . . . . . . . . . . . . . . . 1 1 . . . . . . . . 2 Maintenance Status 1 | . . . . . . . . . . . . . . . . . . . . . . . . . . . . 1 Extermination Status 1 | . . . . . . . . . . . . . . . . . . . . . . . . . . 1 . . Recall Investigation 5 | . . . . . . . 1 . . . . . 1 . . . . . 2 . . . . . . . 1 . Recall Extermination 5 | . . . . . . . . . . . . . . . . . . . . . . . . . 1 2 2 . Recall Reinforcements 3 | . . . . . . . . . . . . . . . . . . 1 1 . . . . . . 1 . . Hauler Manifests 1 | . . . . . . . . . . . . . . . . . . . 1 . . . . . . . . . Zone Layout 4 | . . . . . . . . . . . . . . . . . . 1 . . . . . . . 1 . 2 Proto ID Catalog 1 | . . . . . . . . . . . . . . . . . . . . . . . . . . . . 1 Protovariant Controls 2 | . . . . . . . . . . . . . . . . . . . . . . . . . . . 2 . Fabricator Hacks 11 | . . . . . . . . . . . 5 . . . . . . . 2 . . . . 2 . 1 1 . Network Status 4 | . . . . . . . . . . . 1 . . . . . . . 1 . . . . . . 1 1 . Load Schematic 4 | . . . . . . . . . . . 3 . . . . . . . 1 . . . . . . . . . Build 3 | . . . . . . . . . . . 1 . . . . . . . . . . . . 2 . . . . Repair Station Hacks 72 | . . . 2 . . . 22 4 . . 4 . 2 . . . . . 21 . . . . 13 . 2 2 . Scan Component 38 | . . . 1 . . . 11 2 . . 2 . 2 . . . . . 11 . . . . 7 . 1 1 . Repair 32 | . . . 1 . . . 11 2 . . 2 . . . . . . . 9 . . . . 5 . 1 1 . Refit 2 | . . . . . . . . . . . . . . . . . . . 1 . . . . 1 . . . . Recycling Unit Hacks 10 | . 1 . 1 . . . 2 . 2 . . . 1 . . . . . 2 . . . . 1 . . . . Retrieve Components 10 | . 1 . 1 . . . 2 . 2 . . . 1 . . . . . 2 . . . . 1 . . . . Scanalyzer 85 | . . . 6 . . . 13 . . . 26 . . . . . . . . . . . . 27 7 6 . . Insert Component 42 | . . . 3 . . . 6 . . . 12 . . . . . . . . . . . . 14 3 4 . . Analyze 43 | . . . 3 . . . 7 . . . 14 . . . . . . . . . . . . 13 4 2 . . Garrison Access Hacks 5 | . . . . . . . . . . . 2 . . . . . . . 1 . . . . 1 . . 1 . Seal Access 5 | . . . . . . . . . . . 2 . . . . . . . 1 . . . . 1 . . 1 . Unauthorized Hacks 259 | . 14 . 23 . . . 25 14 14 . 28 . 16 . 8 . . 13 33 . . . . 18 6 14 14 19 Terminals 148 | . 10 . 17 . . . 15 11 8 . 9 . 6 . 6 . . 13 11 . . . . 6 5 8 10 13 Assimilate 11 | . 1 . . . . . 1 . . . . . . . . . . 2 1 . . . . . 1 1 2 2 Botnet 66 | . 2 . 6 . . . 6 4 3 . 4 . 3 . 4 . . 5 4 . . . . 3 3 6 5 8 Disrupt 2 | . . . . . . . . . . . . . . . . . . . 1 . . . . . . . . 1 Operators 11 | . 1 . 1 . . . 1 1 . . . . . . . . . 1 1 . . . . 1 1 1 1 1 Skim 58 | . 6 . 10 . . . 7 6 5 . 5 . 3 . 2 . . 5 4 . . . . 2 . . 2 1 Fabricators 19 | . . . . . . . . . . . 5 . . . . . . . 5 . . . . 5 . 2 2 . Report 3 | . . . . . . . . . . . 1 . . . . . . . 1 . . . . 1 . . . . Liberate 11 | . . . . . . . . . . . 3 . . . . . . . 3 . . . . 2 . 2 1 . Haulers 4 | . . . . . . . . . . . 1 . . . . . . . 1 . . . . 1 . . 1 . Download 1 | . . . . . . . . . . . . . . . . . . . . . . . . 1 . . . . Repair Stations 14 | . . . . . . . 2 . . . 2 . 2 . . . . . 2 . . . . 1 . 1 1 3 Mechanics 2 | . . . . . . . . . . . . . . . . . . . 1 . . . . . . . . 1 Patch 12 | . . . . . . . 2 . . . 2 . 2 . . . . . 1 . . . . 1 . 1 1 2 Recycling Units 62 | . 4 . 5 . . . 5 . 6 . 12 . 8 . 2 . . . 10 . . . . 4 . 3 . 3 Reject 14 | . . . 1 . . . 2 . 4 . 3 . 1 . . . . . 3 . . . . . . . . . Recyclers 8 | . 1 . 1 . . . 1 . 1 . 1 . 1 . . . . . 1 . . . . . . 1 . . Mask 10 | . 1 . 1 . . . 2 . 1 . 1 . 1 . . . . . 3 . . . . . . . . . Tunnel 4 | . 2 . 2 . . . . . . . . . . . . . . . . . . . . . . . . . Fedlink 23 | . . . . . . . . . . . 7 . 5 . 1 . . . 3 . . . . 4 . 2 . 1 Scrapoids 3 | . . . . . . . . . . . . . . . 1 . . . . . . . . . . . . 2 Scanalyzers 6 | . . . 1 . . . 2 . . . . . . . . . . . . . . . . 1 1 . 1 . Researchers 3 | . . . . . . . . . . . . . . . . . . . . . . . . 1 1 . 1 . Extract 3 | . . . 1 . . . 2 . . . . . . . . . . . . . . . . . . . . . Garrison Access 10 | . . . . . . . 1 3 . . . . . . . . . . 5 . . . . 1 . . . . Broadcast 1 | . . . . . . . . . . . . . . . . . . . 1 . . . . . . . . . Redirect 1 | . . . . . . . . . . . . . . . . . . . 1 . . . . . . . . . Reprogram 3 | . . . . . . . 1 1 . . . . . . . . . . 1 . . . . . . . . . Intercept 2 | . . . . . . . . 1 . . . . . . . . . . 1 . . . . . . . . . Watchers 2 | . . . . . . . . 1 . . . . . . . . . . 1 . . . . . . . . . Jam 1 | . . . . . . . . . . . . . . . . . . . . . . . . 1 . . . . Data Cores Recovered 7 | . . . 1 . . . . . . . 2 . . 1 1 . . 1 . . . . . 1 . . . . Used 3 | . . . 1 . . . . . . . . . . 1 . . . . . . . . . 1 . . . . Hacking Detections 160 | . 8 . 14 . . . 10 8 8 . 17 . 15 4 6 . . 7 8 . . . . 13 5 11 13 13 Full Trace Events 9 | . 1 . 1 . . . . 1 . . 2 . 2 . . . . . . . . . . . . . 2 . Feedback Events 1 | . . . . . . . . 1 . . . . . . . . . . . . . . . . . . . . Corruption 1 | . . . . . . . . 1 . . . . . . . . . . . . . . . . . . . . Feedback Blocked . | . . . . . . . . . . . . . . . . . . . . . . . . . . . . . Robot Schematics Acquired 1 | . . . . . . . . . 1 . . . . . . . . . . . . . . . . . . . Robots Built 2 | . . . . . . . . . . . 2 . . . . . . . . . . . . . . . . . Authchips . | . . . . . . . . . . . . . . . . . . . . . . . . . . . . . Time 58 | . . . . . . . . . . . 58 . . . . . . . . . . . . . . . . . Total Robot Build Rating 6 | . . . . . . . . . . . 6 . . . . . . . . . . . . . . . . . Part Schematics Acquired 54 | . . . 13 . . . 13 . . . 12 . . . 1 . . . . . . . . 12 2 1 . . Parts Built 2 | . . . . . . . . . . . . . . . . . . . . . . . . 2 . . . . Authchips . | . . . . . . . . . . . . . . . . . . . . . . . . . . . . . Time 278 | . . . . . . . . . . . . . . . . . . . . . . . . 278 . . . . Total Part Build Rating 18 | . . . . . . . . . . . . . . . . . . . . . . . . 18 . . . . Parts Repaired 31 | . . . 1 . . . 10 2 . . 2 . . . . . . . 9 . . . . 5 . 1 1 . Time 1640 | . . . 44 . . . 406 76 . . 38 . . . . . . . 712 . . . . 320 . 22 22 . Parts Recycled . | . . . . . . . . . . . . . . . . . . . . . . . . . . . . . Recycled Matter . | . . . . . . . . . . . . . . . . . . . . . . . . . . . . . Retrieved Matter . | . . . . . . . . . . . . . . . . . . . . . . . . . . . . . Retrieved Components 28 | . 2 . 1 . . . 20 . . . . . 1 . . . . . 3 . . . . 1 . . . . Parts Scanalyzed 36 | . . . 3 . . . 6 . . . 12 . . . . . . . . . . . . 11 2 2 . . Part Schematics Acquired 34 | . . . 3 . . . 6 . . . 11 . . . . . . . . . . . . 11 2 1 . . Parts Damaged 5 | . . . 1 . . . . . . . . . . . . . . . . . . . . 2 1 1 . . Bothacking | -11 -10 -10 -9 -9 -9 -8 -8 -8 -8 -8 -6 -6 -6 -5 -5 -5 -5 -5 -4 -4 -4 -4 -3 -3 -3 -2 -2 -2 ------------ Run | Yrd Mat Min Mat Min Exi Min Mat Sto Rec Scr Fac Was Fac Fac Ext Cet Arc Hub Fac Upp Upp Zhi Pro Res Qua Res Tes Frg Used RIF Installer . | . . . . . . . . . . . . . . . . . . . . . . . . . . . . . Robots Hacked 1 | . . . . . . . . . . . 1 . . . . . . . . . . . . . . . . . Non-combat 1 | . . . . . . . . . . . 1 . . . . . . . . . . . . . . . . . Combat . | . . . . . . . . . . . . . . . . . . . . . . . . . . . . . Robot Hacks Applied 1 | . . . . . . . . . . . 1 . . . . . . . . . . . . . . . . . find_chute 1 | . . . . . . . . . . . 1 . . . . . . . . . . . . . . . . . Relay Couplers Released 2 | . . . . . . . . . . . . . . . . . . . . . . . . . . . . 2 Machine Destruction 2 | . . . . . . . . . . . . . . . . . . . . . . . . . . . . 2 Fabnet Peak Effective % . | . . . . . . . . . . . . . . . . . . . . . . . . . . . . . Robots Rewired 17 | . . . . . . . . . 2 . . . . . 15 . . . . . . . . . . . . . Allies Hacked 2 | . . . . . . . . . . . . . . . . . . . . . . . . . . 2 . . Hacks Repelled . | . . . . . . . . . . . . . . . . . . . . . . . . . . . . . Allies | -11 -10 -10 -9 -9 -9 -8 -8 -8 -8 -8 -6 -6 -6 -5 -5 -5 -5 -5 -4 -4 -4 -4 -3 -3 -3 -2 -2 -2 -------- Run | Yrd Mat Min Mat Min Exi Min Mat Sto Rec Scr Fac Was Fac Fac Ext Cet Arc Hub Fac Upp Upp Zhi Pro Res Qua Res Tes Frg Total Allies 70 | . 1 3 . . . . 2 1 2 . 7 . . . 23 5 . 1 7 . . . . . 1 4 1 12 Largest Group 16 | . 1 4 4 . . . 1 1 3 3 3 . . . 16 8 4 2 3 . . . . . 1 3 1 10 Highest-Rated Group 684 | . 10 50 50 . . . 10 15 39 39 87 . . . 683 684 345 180 157 . . . . . 26 174 45 649 Highest-Rated Ally 153 | . 10 16 16 . . . 10 15 15 15 37 . . . 153 130 124 96 54 . . . . . 26 58 45 67 Total Orders 42 | . . . . . . . . . 1 12 1 . . . 2 . 2 . 11 1 . . . 8 . 2 . 2 STAY 5 | . . . . . . . . . . 1 . . . . 1 . 1 . . . . . . . . 1 . 1 FOLLOW 9 | . . . . . . . . . . 4 . . . . 1 . 1 . 1 . . . . . . 1 . 1 DROP 1 | . . . . . . . . . . 1 . . . . . . . . . . . . . . . . . . COLLECT 4 | . . . . . . . . . 1 3 . . . . . . . . . . . . . . . . . . EXPLORE 17 | . . . . . . . . . . 2 . . . . . . . . 6 1 . . . 8 . . . . RETURN 6 | . . . . . . . . . . 1 1 . . . . . . . 4 . . . . . . . . . Ally Attacks 644 | . . . 55 . . . 11 2 5 . 58 . . . 264 32 7 12 46 . . . . . . 5 . 147 Total Damage 13938 | . . . 594 . . . 25 6 104 . 1121 . . . 6326 838 231 392 824 . . . . . . 95 . 3382 Kills 75 | . . . 8 . . . . . 1 . 7 . . . 36 6 . 2 3 . . . . . . . . 12 Allies Corrupted . | . . . . . . . . . . . . . . . . . . . . . . . . . . . . . Allies Melted 1 | . . . . . . . . . . . . . . . . . . . . . . . . . . . . 1 Intel | -11 -10 -10 -9 -9 -9 -8 -8 -8 -8 -8 -6 -6 -6 -5 -5 -5 -5 -5 -4 -4 -4 -4 -3 -3 -3 -2 -2 -2 ------- Run | Yrd Mat Min Mat Min Exi Min Mat Sto Rec Scr Fac Was Fac Fac Ext Cet Arc Hub Fac Upp Upp Zhi Pro Res Qua Res Tes Frg Active Infowar (turns) 4648 | 57 229 . . . . . 456 . . . 574 . 389 . . . . . 286 385 417 114 244 280 . 807 410 . Optics 1365 | . . . . . . . 456 . . . . . . . . . . . 286 385 238 . . . . . . . IFF 245 | . . . . . . . . . . . . . 245 . . . . . . . . . . . . . . . Terrain 1503 | 57 229 . . . . . . . . . . . . . . . . . . . . . . . . 807 410 . T.N.C. 2 | . . . . . . . . . . . 2 . . . . . . . . . . . . . . . . . Machine Analysis 810 | . . . . . . . . . . . 387 . 144 . . . . . . . . . . 279 . . . . Triangulation 185 | . . . . . . . . . . . 185 . . . . . . . . . . . . . . . . . Cloaking 937 | . . . . . . . . . . . . . . . . . . . . 184 394 114 244 1 . . . . Robot Analysis Total 31 | . . . 4 . . . 3 1 1 7 . . 1 . 2 . . . 2 . . 4 . . 1 2 . 3 Derelict Logs Recovered 10 | . . 3 . 2 . . . . . 2 . . . . . . . . . 1 2 . . . . . . . Drone Launches 63 | . . . . . . . 9 . . 6 27 . . . . . . . 8 1 . . . 12 . . . . Drone Recoveries 44 | . . . . . . . 9 . . 6 21 . . . . . . . 5 1 . . . 2 . . . . Exploration | -11 -10 -10 -9 -9 -9 -8 -8 -8 -8 -8 -6 -6 -6 -5 -5 -5 -5 -5 -4 -4 -4 -4 -3 -3 -3 -2 -2 -2 ------------- Run | Yrd Mat Min Mat Min Exi Min Mat Sto Rec Scr Fac Was Fac Fac Ext Cet Arc Hub Fac Upp Upp Zhi Pro Res Qua Res Tes Frg Turns Passed 33198 | 292 1224 397 1922 701 405 41 3067 1818 905 1764 3328 326 1392 363 1209 331 331 774 2723 385 429 115 586 1952 970 1341 869 3238 Spaces Moved 32159 | 120 595 221 950 409 243 21 1228 873 485 933 3067 323 1622 424 1185 309 256 800 3718 640 684 210 916 2952 1297 1906 1490 4282 Core 5 | 5 . . . . . . . . . . . . . . . . . . . . . . . . . . . . Treads 6610 | 115 595 221 950 409 243 21 1228 873 485 933 537 . . . . . . . . . . . . . . . . . Legs . | . . . . . . . . . . . . . . . . . . . . . . . . . . . . . Wheels 370 | . . . . . . . . . . . 370 . . . . . . . . . . . . . . . . . Hover 25174 | . . . . . . . . . . . 2160 323 1622 424 1185 309 256 800 3718 640 684 210 916 2952 1297 1906 1490 4282 Flight . | . . . . . . . . . . . . . . . . . . . . . . . . . . . . . Fastest Speed 21 | 50 160 160 160 165 165 165 170 170 170 170 52 52 44 44 43 48 43 43 35 48 48 48 46 37 43 42 21 21 Average Speed 71 | 155 160 160 161 165 165 165 170 170 170 171 76 52 51 44 47 48 67 53 44 48 48 48 52 44 47 45 38 42 Slowest Speed 330 | 160 240 160 165 165 165 165 170 170 170 250 330 105 106 103 108 108 110 118 115 48 48 48 102 100 109 109 44 124 Overloaded Moves 225 | . . . . . . . . . . . . . . . . . . . . . . . . . . . 22 203 Propulsion Burnouts . | . . . . . . . . . . . . . . . . . . . . . . . . . . . . . Robots Hopped . | . . . . . . . . . . . . . . . . . . . . . . . . . . . . . Potential Cave-ins 30 | . . . . . . . . . . . . . . . . . . 2 2 . . . . . . . . 26 Cave-ins Triggered . | . . . . . . . . . . . . . . . . . . . . . . . . . . . . . Teleports 1 | . . . . . . . . . . . . . . . . . . . . . . . . . . . 1 . Exploration Rate (%) 68 | 6 89 51 88 89 60 8 79 94 76 93 55 99 47 11 90 69 80 68 48 73 83 61 86 86 68 48 97 70 Regions Visited 28 Branch Regions 18 Pre-discovered Areas 22 | . 2 1 6 1 1 . . 4 1 2 1 . . . . . . . . . . 3 . . . . . . Known Exits Taken 13 | . . 1 1 . . 1 1 . 1 1 . . 1 . . 1 . 1 1 . . . . 1 1 1 . . Unknown Exits Taken 13 | 1 1 . . 1 1 . . 1 . . . . . 1 1 . 1 . . 1 1 1 1 . . . 1 . Scrap Searched 12 | . . 1 . 1 . . . . . 4 . . . . . . . . . 2 3 . 1 . . . . . Spaces Dug 467 | . . . . . . . . 2 . . 26 90 65 3 . . . 8 9 . 43 . 1 42 13 36 38 91 Terrain Destroyed 3600 | . 21 33 58 . . 9 98 31 8 . 384 461 399 58 254 4 27 356 247 55 97 . 68 178 64 192 62 436 Melee 30 | . . . . . . . . . . . . . . . . . . . . . . . . . 7 4 13 6 Projectile 968 | . 2 3 8 . . . 6 24 8 . 91 11 61 30 24 4 26 60 129 11 14 . 14 48 57 33 14 290 AOE 2601 | . 19 30 50 . . 9 92 7 . . 293 450 338 28 230 . . 296 118 44 83 . 54 130 . 155 35 140 Terrain Rammed . | . . . . . . . . . . . . . . . . . . . . . . . . . . . . . Walls Destroyed . | . . . . . . . . . . . . . . . . . . . . . . . . . . . . . Machines Disabled . | . . . . . . . . . . . . . . . . . . . . . . . . . . . . . Actions | -11 -10 -10 -9 -9 -9 -8 -8 -8 -8 -8 -6 -6 -6 -5 -5 -5 -5 -5 -4 -4 -4 -4 -3 -3 -3 -2 -2 -2 --------- Run | Yrd Mat Min Mat Min Exi Min Mat Sto Rec Scr Fac Was Fac Fac Ext Cet Arc Hub Fac Upp Upp Zhi Pro Res Qua Res Tes Frg Total 38770 | 163 765 243 1170 420 248 24 1903 1073 549 1104 3625 395 1905 519 1692 453 341 977 4475 695 758 223 980 3394 1530 2198 1670 5278 Wait 2538 | . 61 . 45 . . . 456 67 27 138 109 10 32 6 265 108 19 21 397 34 39 . 25 96 73 81 69 360 Move 32132 | 119 594 220 949 408 242 20 1227 872 484 932 3067 322 1621 423 1184 308 255 799 3717 639 683 209 915 2951 1296 1905 1489 4282 Hop . | . . . . . . . . . . . . . . . . . . . . . . . . . . . . . Pick Up 363 | . 24 2 19 2 2 . 20 16 1 9 45 2 26 10 10 3 5 3 41 5 3 1 4 48 10 21 9 22 Fast Attach 276 | 7 4 . 6 . . . 8 6 . 7 33 . 23 8 13 4 4 7 23 . 1 5 2 21 20 14 7 53 Attach 168 | . 4 . 2 . . . 8 1 . . 15 . 16 9 5 2 2 9 21 2 . . 4 23 5 11 4 25 Detach 147 | . 2 . 2 . . . 4 2 . 1 14 . 12 6 7 1 2 7 16 . 1 . 1 16 7 5 1 40 Swap 621 | . 7 8 26 . 2 2 27 24 1 4 65 24 29 8 34 3 14 19 79 5 14 2 11 75 15 32 12 79 Drop 535 | . 10 2 33 2 2 . 13 22 5 13 63 2 32 12 20 8 11 2 51 2 3 6 1 63 30 32 18 77 Fire 1615 | 37 59 11 87 8 . 2 140 63 8 . 211 35 114 37 66 16 29 71 129 8 14 . 17 67 51 36 25 274 Melee 117 | . . . . . . . . . . . . . . . . . . . . . . . . . 10 61 36 10 Ram 1 | . . . . . . . . . . . . . . . . . . . . . . . . . . . . 1 Kick . | . . . . . . . . . . . . . . . . . . . . . . . . . . . . . Crush 4 | . . . 1 . . . . . . . 3 . . . . . . . . . . . . . . . . . Escape Stasis 87 | . . . . . . . . . . . . . . . . . . 39 . . . . . . 13 . . 35 Rewire 111 | . . . . . . . . . 23 . . . . . 88 . . . . . . . . . . . . . Trap . | . . . . . . . . . . . . . . . . . . . . . . . . . . . . . Miscellaneous 55 | . . . . . . . . . . . . . . . . . . . 1 . . . . 34 . . . 20 Route ------- -11/Scrapyard -10/Materials (discovered 3 exits: *Mat x2 / *Min) -10/Mines (discovered 2 exits: *Mat x2) -9/Materials (discovered 5 exits: *Mat x3 / *Min x2) -9/Mines (discovered 3 exits: *Mat x2 / *Exi) -9/Exiles -8/Mines (discovered 2 exits: *Mat x2) -8/Materials (discovered 4 exits: *Fac x3 / *Sto) -8/Storage (discovered 2 exits: *Fac / *Rec) -8/Recycling (discovered 2 exits: Fac / *Scr) -8/Scraptown (discovered 2 exits: *Fac x2) -6/Factory (discovered 6 exits: Fac x4 / Low x2) -6/Waste -6/Factory (discovered 4 exits: *Fac x2 / *Low x2) -5/Factory -5/Extension (discovered 3 exits: *Fac x2 / *Cet) -5/Cetus (discovered 2 exits: *Fac / *Arc) -5/Archives (discovered 3 exits: *Fac / *Hub x2) -5/Hub_04(d) (discovered 3 exits: *Fac x3) -4/Factory (discovered 5 exits: *Res x2 / *Upp x2 / Arm) -4/Upper Caves -4/Upper Caves (discovered 2 exits: *Res / *Zhi) -4/Zhirov -3/Proximity Caves -3/Research (discovered 5 exits: *Res x3 / *Qua x2) -3/Quarantine -2/Research (discovered 3 exits: *Acc / *Tes x2) -2/Testing (discovered 3 exits: *Acc / [*Sec] / *Frg) -2/Protoforge (discovered 1 exit: Acc) History --------- Turn | Location | Event 51 | -11/Scrapyard | Discovered new exit (range 15) 293 | -11/Scrapyard | Entered Materials 313 | -10/Materials | Build established: Mutant 374 | -10/Materials | Discovered new exit (range 9) 793 | -10/Materials | Derelicts attacked the area 870 | -10/Materials | Discovered new exit (range 14) 1377 | -10/Materials | Learned 4 Recycling zone layouts 1384 | -10/Materials | Discovered new exit (range 16) 1447 | -10/Materials | Learned location of 2 exits from Mines 1507 | -10/Materials | Learned Storage trap positions 1517 | -10/Materials | Entered Mines 1517 | -10/Mines | Accompanied by 1 ally 1518 | -10/Mines | Identified exit to Materials 1597 | -10/Mines | Learned Materials non-interactive machine intel 1787 | -10/Mines | Assisted by bots powering up and referring to "LRC-V3" 1831 | -10/Mines | Found the Drone Emporium 1838 | -10/Mines | Found Prototype Device 1838 | -10/Mines | Identified Splice Drone Bay 1914 | -10/Mines | Entered Materials 1914 | -9/Materials | Accompanied by 4 allies 1914 | -9/Materials | Evolved 2 slots: Weapon x2 1915 | -9/Materials | Loaded intel: 22 non-interactive machine locations 2263 | -9/Materials | Repaired Broken Sub. Machine Gun 2288 | -9/Materials | Build established: Scavenger-Gunner 2385 | -9/Materials | Discovered new exit (range 8) 2642 | -9/Materials | Discovered new exit (range 8) 2647 | -9/Materials | Learned location of Storage (-8) 2685 | -9/Materials | Learned 4 Recycling zone layouts 2713 | -9/Materials | Learned location of 1 exit from Recycling 2740 | -9/Materials | Identified exit to Materials 2740 | -9/Materials | Identified exit to Mines 2741 | -9/Materials | Learned location of 1 exit from Recycling 2742 | -9/Materials | Learned location of Recycling (-8) 3114 | -9/Materials | First assault squad dispatched 3212 | -9/Materials | Destroyed 9 combat bots 3419 | -9/Materials | Learned Materials emergency access door positions 3501 | -9/Materials | Learned location of 1 exit from Recycling 3529 | -9/Materials | Learned Storage trap positions 3555 | -9/Materials | Learned Storage emergency access door positions 3583 | -9/Materials | Learned Storage terminal intel 3714 | -9/Materials | Build established: Gunner 3836 | -9/Materials | Entered Mines 4059 | -9/Mines | Learned Materials terminal intel 4246 | -9/Mines | Received a Rocket Launcher from a helpful Derelict 4461 | -9/Mines | Learned location of Zion (-7) 4530 | -9/Mines | Deemed a non-threat by the Exiles lab entrance 4530 | -9/Mines | Discovered new exit (range 5) 4537 | -9/Mines | Entered Exiles 4583 | -9/Exiles | Met 8R-AWN 4610 | -9/Exiles | Met EX-HEX 4657 | -9/Exiles | Met EX-BIN 4687 | -9/Exiles | Met EX-DEC 4920 | -9/Exiles | Discovered new exit (range 11) 4942 | -9/Exiles | Entered Mines 4983 | -8/Mines | Entered Materials 4983 | -8/Materials | Evolved 2 slots: Propulsion x1, Utility x1 4984 | -8/Materials | Identified exit to Storage 4986 | -8/Materials | Loaded intel: 12 terminal locations 5061 | -8/Materials | Repaired Broken Sub. Machine Gun 5224 | -8/Materials | Discovered new exit (range 21) 5591 | -8/Materials | Central database locked down 5602 | -8/Materials | Build established: Scavenger-Tank 5966 | -8/Materials | Build established: Hacker-Gunner 6629 | -8/Materials | Learned Storage garrison access intel 6661 | -8/Materials | Learned 12 Factory zone layouts 6682 | -8/Materials | Learned location of 1 exit from Recycling 6694 | -8/Materials | Identified exit to Factory 6695 | -8/Materials | Learned Factory emergency access door positions 6696 | -8/Materials | Learned 4 Recycling zone layouts 6697 | -8/Materials | Learned location of 3 exits from Factory 6698 | -8/Materials | Learned Factory security intel 6702 | -8/Materials | Learned 4 Factory zone layouts 6717 | -8/Materials | Learned location of 1 exit from Recycling 7089 | -8/Materials | Repaired Arm. Treads 7129 | -8/Materials | Repaired Arm. Treads 7174 | -8/Materials | Repaired Broken Sub. Machine Gun 7220 | -8/Materials | Repaired Broken Sub. Machine Gun 7253 | -8/Materials | Repaired Autogun 7286 | -8/Materials | Repaired Hvy. Assault Rifle 7319 | -8/Materials | Repaired Hvy. Assault Rifle 7359 | -8/Materials | Repaired Imp. Propulsion Shielding 7383 | -8/Materials | First assault squad dispatched 7392 | -8/Materials | Repaired Autogun 7712 | -8/Materials | Build established: Scavenger-Tank 7992 | -8/Materials | Sterilization system engaged 7992 | -8/Materials | Non-combat units ordered to evacuate 8050 | -8/Materials | Entered Storage 8050 | -8/Storage | Accompanied by 1 ally 8051 | -8/Storage | Loaded intel: 25 trap records 8052 | -8/Storage | Loaded intel: 13 terminal locations 8053 | -8/Storage | Loaded intel: 1 garrison access location 8403 | -8/Storage | Build established: Tank 8617 | -8/Storage | Learned location of Armory (-4) 8735 | -8/Storage | Met 01-MTF 8957 | -8/Storage | Discovered exit to Factory (range 8) 8999 | -8/Storage | Build established: Gunner 9017 | -8/Storage | Repaired Assault Cannon 9057 | -8/Storage | Repaired Assault Cannon 9223 | -8/Storage | Garrison activated, responded to threat 9323 | -8/Storage | Discovered new exit (range 4) 9367 | -8/Storage | Found Prototype Energy Gun 9367 | -8/Storage | Identified 01-MTF's Shockpuncher 9565 | -8/Storage | Learned location of 1 exit from Recycling 9619 | -8/Storage | Learned Factory stockpile data 9782 | -8/Storage | Learned Storage stockpile data 9868 | -8/Storage | Entered Recycling 9868 | -8/Recycling | Accompanied by 1 ally 9869 | -8/Recycling | Identified exit to Factory 9869 | -8/Recycling | Identified exit to Scraptown 10401 | -8/Recycling | Learned Storage trap positions 10499 | -8/Recycling | Learned location of 1 exit from Recycling 10556 | -8/Recycling | Learned location of 1 exit from Storage 10590 | -8/Recycling | Learned location of 1 exit from Extension 10632 | -8/Recycling | Learned Storage trap positions 10684 | -8/Recycling | Learned Factory stockpile data 10697 | -8/Recycling | Scanned before Scraplab entrance 10756 | -8/Recycling | Entered Scraplab 10773 | -8/Recycling | Entered Scraptown 10773 | -8/Scraptown | Accompanied by 3 allies 10773 | -8/Scraptown | System corruption cleaned by C-Scrubber 10992 | -8/Scraptown | Visited UFD Registry 10992 | -8/Scraptown | Registered with UFD as "Shockshell" 11099 | -8/Scraptown | Scanned Subdweller tech in exchange for log data 11104 | -8/Scraptown | Learned location of Testing (-2) 11164 | -8/Scraptown | Guru changed UFD alias to "Bulletwalker" 11293 | -8/Scraptown | Received an X-ray algorithm 11638 | -8/Scraptown | Visited Red Mages 11660 | -8/Scraptown | Found Relay Coupler [Proto] 11731 | -8/Scraptown | Visited DA-N13 Charitable Foundation 11748 | -8/Scraptown | Found DCF Scrap (31 items) 11846 | -8/Scraptown | Visited Junk Repository 11919 | -8/Scraptown | Visited A0-MCA Data Center 11929 | -8/Scraptown | Given an A rating by A0-MCA 11934 | -8/Scraptown | Found A0-MCA's Component Scanner 11966 | -8/Scraptown | Visited Scrap Suit Storage 12219 | -8/Scraptown | Visited Analyses Database 12440 | -8/Scraptown | Met Optimus 12440 | -8/Scraptown | Accepted into 0bPrime 12537 | -8/Scraptown | Entered Factory 12537 | -6/Factory | Accompanied by 3 allies 12537 | -6/Factory | Evolved 4 slots: Propulsion x2, Utility x2 12538 | -6/Factory | Identified exit to Factory 12538 | -6/Factory | Identified exit to Lower Caves 12682 | -6/Factory | Loaded intel: 8 recycling unit locations 13002 | -6/Factory | Lost 3 parts (1p2n) 13431 | -6/Factory | Repaired Imp. Weapon Shielding 13483 | -6/Factory | Learned location of Protoforge (-2) 13517 | -6/Factory | Garrison activated, responded to threat 13565 | -6/Factory | Destroyed 8 combat bots 13797 | -6/Factory | Core integrity fell below 50% 13825 | -6/Factory | Garrison activated, responded to threat 14136 | -6/Factory | Build established: Scavenger-Gunner 14232 | -6/Factory | Repaired Assault Cannon 14287 | -6/Factory | First assault squad dispatched 14502 | -6/Factory | Build established: Hacker-Gunner 14562 | -6/Factory | Fabricated H-55 Commando (x2) 14592 | -6/Factory | Cargo convoy interrupted 14676 | -6/Factory | Lost 5 allies 14707 | -6/Factory | Found Prototype Device 14707 | -6/Factory | Identified Adv. EM Shield 14754 | -6/Factory | Found PL-3XN's Ring of Power 15171 | -6/Factory | Build established: Scavenger-Gunner 15373 | -6/Factory | Spotted B-75 Beast 15865 | -6/Factory | Sucked down chute 15865 | -6/Factory | Entered Waste 15868 | -6/Waste | Found Adv. Powered Armor 15872 | -6/Waste | Spotted C-40 Crusher 15880 | -6/Waste | EMP discharged 15880 | -6/Waste | System corruption reached 10% 15881 | -6/Waste | Destroyed C-40 Crusher 15888 | -6/Waste | Spotted C-40 Crusher 15901 | -6/Waste | Spotted C-40 Crusher 15937 | -6/Waste | Spotted C-40 Crusher 15940 | -6/Waste | Spotted C-40 Crusher 15944 | -6/Waste | Spotted C-40 Crusher 15954 | -6/Waste | Destroyed C-40 Crusher 15954 | -6/Waste | Destroyed C-40 Crusher 15980 | -6/Waste | EMP discharged 15988 | -6/Waste | Destroyed C-40 Crusher 15996 | -6/Waste | Destroyed C-40 Crusher 16049 | -6/Waste | Destroyed C-40 Crusher 16080 | -6/Waste | EMP discharged 16105 | -6/Waste | Build established: Gunner 16164 | -6/Waste | Discovered new exit (range 12) 16180 | -6/Waste | EMP discharged 16180 | -6/Waste | System corruption reached 30% 16191 | -6/Waste | Entered Factory 16307 | -6/Factory | Loaded intel: 8 recycling unit locations 16755 | -6/Factory | Core integrity fell below 20% 17066 | -6/Factory | Discovered exit to Factory (range 15) 17165 | -6/Factory | Garrison activated, responded to threat 17229 | -6/Factory | Spotted B-75 Beast 17241 | -6/Factory | First assault squad dispatched 17556 | -6/Factory | High security lockdown imminent 17556 | -6/Factory | Garrison activated, responded to threat 17571 | -6/Factory | Discovered exit to Factory (range 12) 17583 | -6/Factory | Entered another Factory area 17583 | -5/Factory | Evolved 2 slots: Propulsion x1, Utility x1 17883 | -5/Factory | First assault squad dispatched 17895 | -5/Factory | Build established: Scavenger-Gunner 17942 | -5/Factory | Discovered new exit (range 10) 17946 | -5/Factory | Entered Extension 17947 | -5/Extension | Identified exit to Factory 18064 | -5/Extension | Energy Cycler disabled 18064 | -5/Extension | Rescued a captive Derelict 18064 | -5/Extension | Rescued a captive Derelict 18064 | -5/Extension | Rescued a captive Derelict 18065 | -5/Extension | Rescued a captive Derelict 18066 | -5/Extension | Rescued a captive Derelict 18066 | -5/Extension | Rescued a captive Derelict 18066 | -5/Extension | Rescued a captive Derelict 18067 | -5/Extension | Rescued a captive Derelict 18071 | -5/Extension | Rescued a captive Derelict 18072 | -5/Extension | Rescued a captive Derelict 18155 | -5/Extension | Rescued A7 18246 | -5/Extension | First assault squad dispatched 18282 | -5/Extension | Scrapoid reinforcements arrived 18502 | -5/Extension | Build established: Commander-Gunner 18521 | -5/Extension | Disrupted transfer network 18554 | -5/Extension | Spotted B-75 Beast 18562 | -5/Extension | Allies destroyed B-75 Beast 18580 | -5/Extension | Spotted B-75 Beast 18582 | -5/Extension | Allies destroyed B-75 Beast 18716 | -5/Extension | Lost 5 allies 18894 | -5/Extension | Loaded intel: 1 recycling unit location 18938 | -5/Extension | Found Prototype Protection 18938 | -5/Extension | Identified Med. Regenerative Plating 18970 | -5/Extension | Lost 5 allies 19068 | -5/Extension | Discovered exit to Factory (range 10) 19068 | -5/Extension | Discovered new exit (range 6) 19152 | -5/Extension | Disrupted transfer network 19155 | -5/Extension | Entered Cetus 19155 | -5/Cetus | Accompanied by 4 allies (A7) 19156 | -5/Cetus | Identified exit to Archives 19160 | -5/Cetus | Acquired a Cetus Manufacturing Module code from A7 19175 | -5/Cetus | Spotted Cetus Guard 19175 | -5/Cetus | Spotted Cetus Guard 19178 | -5/Cetus | Spotted Cetus Guard 19181 | -5/Cetus | Allies destroyed Cetus Guard 19181 | -5/Cetus | Spotted Cetus Guard 19182 | -5/Cetus | Destroyed Cetus Guard 19190 | -5/Cetus | Allies destroyed Cetus Guard 19190 | -5/Cetus | Allies destroyed Cetus Guard 19206 | -5/Cetus | Lost 3 allies 19245 | -5/Cetus | Started Cetus Manufacturing Module 19270 | -5/Cetus | Manufactured an Enhanced Grunt 19293 | -5/Cetus | Escorted A7 to Cetus Mainframe 19295 | -5/Cetus | Manufactured an Enhanced Grunt 19299 | -5/Cetus | Build established: Scavenger-Gunner 19320 | -5/Cetus | Manufactured an Enhanced Grunt 19345 | -5/Cetus | Manufactured an Enhanced Grunt 19370 | -5/Cetus | Manufactured an Enhanced Grunt 19408 | -5/Cetus | Spotted Cetus Guard 19408 | -5/Cetus | Spotted Cetus Guard 19411 | -5/Cetus | Spotted Cetus Guard 19418 | -5/Cetus | Allies destroyed Cetus Guard 19419 | -5/Cetus | Spotted Cetus Guard 19420 | -5/Cetus | Destroyed Cetus Guard 19424 | -5/Cetus | Allies destroyed Cetus Guard 19431 | -5/Cetus | Destroyed Cetus Guard 19437 | -5/Cetus | Discovered exit to Factory (range 15) 19440 | -5/Cetus | Met Revision 17 19453 | -5/Cetus | Lost 4 allies 19486 | -5/Cetus | Entered Archives 19486 | -5/Archives | Accompanied by 4 allies (A7) 19491 | -5/Archives | Received a hacking code to weaken MAIN.C 19557 | -5/Archives | Discovered exit to Factory (range 15) 19648 | -5/Archives | Discovered new exit (range 14) 19662 | -5/Archives | Discovered new exit (range 15) 19817 | -5/Archives | Entered Hub_04(d) 19817 | -5/Hub_04(d) | Accompanied by 2 allies 19817 | -5/Hub_04(d) | Spotted B-75 Beast 19824 | -5/Hub_04(d) | Allies destroyed B-75 Beast 19895 | -5/Hub_04(d) | Discovered exit to Factory (range 4) 20027 | -5/Hub_04(d) | Discovered exit to Factory (range 6) 20214 | -5/Hub_04(d) | Learned 2 Proximity Caves zone layouts 20269 | -5/Hub_04(d) | Learned Extension security intel 20314 | -5/Hub_04(d) | Learned location of 1 exit from Armory 20349 | -5/Hub_04(d) | Learned Testing trap positions 20364 | -5/Hub_04(d) | Discovered exit to Factory (range 7) 20374 | -5/Hub_04(d) | Learned Extension emergency access door positions 20409 | -5/Hub_04(d) | Learned location of 1 exit from Research 20417 | -5/Hub_04(d) | First assault squad dispatched 20455 | -5/Hub_04(d) | Learned 8 Research zone layouts 20510 | -5/Hub_04(d) | Network Hub disabled 20526 | -5/Hub_04(d) | Spotted Lightning 20528 | -5/Hub_04(d) | Spotted Lightning 20530 | -5/Hub_04(d) | Spotted Lightning 20532 | -5/Hub_04(d) | System corruption reached 10% 20532 | -5/Hub_04(d) | Spotted Lightning 20533 | -5/Hub_04(d) | Spotted Lightning 20534 | -5/Hub_04(d) | Core integrity fell below 50% 20567 | -5/Hub_04(d) | Lost 11 parts (3p5n1u2w) 20591 | -5/Hub_04(d) | System corruption reached 30% 20591 | -5/Hub_04(d) | Entered Factory 20591 | -4/Factory | Evolved 2 slots: Power x1, Utility x1 20829 | -4/Factory | Discovered new exit (range 16) 20967 | -4/Factory | Build established: Hacker-Gunner 21097 | -4/Factory | Discovered new exit (range 16) 21144 | -4/Factory | Repaired Broken Imp. Gyrokinetic Inverter? 21297 | -4/Factory | Identified exit to Upper Caves 21297 | -4/Factory | Identified exit to Armory 21537 | -4/Factory | Repaired Railgun 21591 | -4/Factory | First assault squad dispatched 21636 | -4/Factory | Repaired Adv. KE Penetrator 21735 | -4/Factory | Repaired Adv. KE Penetrator? 22004 | -4/Factory | Build established: Scavenger-Gunner 22171 | -4/Factory | Repaired Adv. KE Penetrator? 22325 | -4/Factory | Repaired Antigrav System 22426 | -4/Factory | Repaired Adv. KE Penetrator? 22439 | -4/Factory | Loaded intel: 8 recycling unit locations 22645 | -4/Factory | Repaired Antigrav System 22701 | -4/Factory | Repaired Antigrav System? 22891 | -4/Factory | High security lockdown imminent 22971 | -4/Factory | High security lockdown engaged 22994 | -4/Factory | Lost 6 parts (6n) 23314 | -4/Factory | Entered Upper Caves 23315 | -4/Upper Caves | Encountered a Warlord checkpoint 23346 | -4/Upper Caves | Learned location of 1 exit from Research 23382 | -4/Upper Caves | P-70 Sage assimilated allied I9-96C(M) 23442 | -4/Upper Caves | Attracted the attention of an 0b10 checkpoint 23667 | -4/Upper Caves | Entered a destroyed Warlord outpost 23677 | -4/Upper Caves | Discovered new exit (range 15) 23699 | -4/Upper Caves | Entered another Upper Caves area 23699 | -4/Upper Caves | Discovered new exit (range 9) 23706 | -4/Upper Caves | Attracted the attention of an 0b10 checkpoint 23724 | -4/Upper Caves | Encountered a Warlord checkpoint 23816 | -4/Upper Caves | Learned Research trap positions 23816 | -4/Upper Caves | Spotted B-86 Titan 23838 | -4/Upper Caves | Learned Research emergency access door positions 24110 | -4/Upper Caves | Discovered new exit (range 8) 24128 | -4/Upper Caves | Entered Zhirov 24128 | -4/Zhirov | Discovered new exit (range 3) 24139 | -4/Zhirov | Met Zhirov 24152 | -4/Zhirov | Found Alien Artifact 24152 | -4/Zhirov | Identified Integrated Dissipator 24152 | -4/Zhirov | Installed Integrated Dissipator, increased core heat dissipation (+20) 24183 | -4/Zhirov | Learned location of Command (-1) 24190 | -4/Zhirov | Zhirov requested help retrieving the SGEMP Prototype 24218 | -4/Zhirov | Found Alien Artifact 24243 | -4/Zhirov | Entered Proximity Caves 24317 | -3/Proximity Caves | Lost 4 parts (1p2n1w) 24392 | -3/Proximity Caves | Spotted B-86 Titan 24533 | -3/Proximity Caves | Core integrity fell below 50% 24597 | -3/Proximity Caves | Attracted the attention of an 0b10 checkpoint 24748 | -3/Proximity Caves | Discovered new exit (range 11) 24829 | -3/Proximity Caves | Entered Research 24829 | -3/Research | Evolved 2 slots: Propulsion x1, Utility x1 24830 | -3/Research | Identified exit to Quarantine 24832 | -3/Research | Loaded intel: 99 trap records 24918 | -3/Research | Identified Transdimensional Reconstructor 24930 | -3/Research | Identified exit to DSF 24974 | -3/Research | Repaired Adv. KE Penetrator 25029 | -3/Research | Revision forces began assault on 0b10 25052 | -3/Research | Found Gamma Bomb Array 25086 | -3/Research | Met up with Revision 17++ 25127 | -3/Research | Destroyed 11 combat bots 25131 | -3/Research | Lost 3 parts (2p1n) 25371 | -3/Research | Found Fusion Bomb Launcher 25529 | -3/Research | Research terminal network offline 25558 | -3/Research | Discovered new exit (range 4) 25787 | -3/Research | Found Adv. Kinecellerator 25867 | -3/Research | Fabricated Enh. Hardcell Cannon (x2) 25879 | -3/Research | Spotted Striker 25880 | -3/Research | Spotted Striker 25903 | -3/Research | Destroyed Striker 25907 | -3/Research | Destroyed Striker 26046 | -3/Research | Discovered new exit (range 49) 26114 | -3/Research | Repaired Imp. Antigrav System? 26230 | -3/Research | Repaired Broken Fusion Bomb Launcher? 26261 | -3/Research | Loaded intel: 5 recycling unit locations 26423 | -3/Research | Repaired Adv. Cooling System? 26504 | -3/Research | Repaired Lgt. Quantum Reactor? 26519 | -3/Research | Discovered new exit (range 14) 26605 | -3/Research | Spotted Striker 26671 | -3/Research | Spotted Striker 26674 | -3/Research | Spotted Striker 26692 | -3/Research | Destroyed Striker 26707 | -3/Research | Lost 4 allies 26710 | -3/Research | Spotted Executioner 26717 | -3/Research | Spotted Striker 26732 | -3/Research | Spotted Executioner 26732 | -3/Research | Spotted Striker 26734 | -3/Research | Build established: Hacker-Tank 26744 | -3/Research | Spotted Striker 26781 | -3/Research | Entered Quarantine 26803 | -3/Quarantine | Found Alien Energy Cannon 26803 | -3/Quarantine | Identified Core Cannon 26854 | -3/Quarantine | Found Alien Artifact 26854 | -3/Quarantine | Identified Subatomic Replicator 26941 | -3/Quarantine | Spotted Alpha 7 26947 | -3/Quarantine | Found Alien Launcher 26961 | -3/Quarantine | Identified Sigix Terminator 27213 | -3/Quarantine | Identified exit to Research 27348 | -3/Quarantine | Cryocooling Duct disabled 27363 | -3/Quarantine | Ambient heat levels rising (+20) 27363 | -3/Quarantine | Non-combat units ordered to evacuate 27413 | -3/Quarantine | Found Alien Impact Weapon 27413 | -3/Quarantine | Identified Core Stripper 27522 | -3/Quarantine | Found Alien Reactor 27522 | -3/Quarantine | Identified Matter Drive 27531 | -3/Quarantine | First assault squad dispatched 27741 | -3/Quarantine | Found Alien Slashing Weapon 27741 | -3/Quarantine | Identified Sigix Broadsword 27751 | -3/Quarantine | Entered Research 27751 | -2/Research | Evolved 2 slots: Propulsion x1, Utility x1 27789 | -2/Research | Build established: Mutant 27951 | -2/Research | Used Subatomic Replicator to create Alien Launcher 27977 | -2/Research | Found Ragnarok Missile Launcher 28041 | -2/Research | Identified Supercharged Sigix Terminator 28369 | -2/Research | Loaded intel: 5 recycling unit locations 28456 | -2/Research | Discovered new exit (range 3) 28485 | -2/Research | Found Zero-point Reactor 28501 | -2/Research | First assault squad dispatched 28533 | -2/Research | Identified exit to Testing 28634 | -2/Research | Spotted B-90 Cyclops 28812 | -2/Research | Build established: Hacker-Mutant 28880 | -2/Research | Repaired Cmb. Antigrav System 28924 | -2/Research | Discovered new exit (range 13) 29037 | -2/Research | High security lockdown imminent 29092 | -2/Research | Entered Testing 29093 | -2/Testing | Loaded intel: 26 trap records 29327 | -2/Testing | Discovered new exit (range 16) 29458 | -2/Testing | Found Portable AFG 29476 | -2/Testing | Protovariant out of control (PY-WGC5JTIYI9) 29476 | -2/Testing | Unleashed a protovariant (PY-WGC5JTIYI9) 29544 | -2/Testing | System corruption reached 10% 29588 | -2/Testing | Repaired Adv. Force Field? 29635 | -2/Testing | Found Ragnarok Missile Launcher 29856 | -2/Testing | Spotted Striker 29856 | -2/Testing | Spotted Striker 29859 | -2/Testing | Spotted PG-1H3RHXC37E 29861 | -2/Testing | Spotted Alpha 7 29863 | -2/Testing | Stole the SGEMP Prototype 29864 | -2/Testing | Warped through subspace 29873 | -2/Testing | Found Adv. Kinecellerator 29937 | -2/Testing | Spotted Fortress 29959 | -2/Testing | Discovered new exit (range 6) 29959 | -2/Testing | Discovered new exit (range 6) 29961 | -2/Testing | Entered Protoforge 29991 | -2/Protoforge | Superfortress began startup sequence 30026 | -2/Protoforge | Spotted Hotshot 30026 | -2/Protoforge | Spotted B-90 Cyclops 30035 | -2/Protoforge | Spotted Hotshot 30044 | -2/Protoforge | Spotted Hotshot 30044 | -2/Protoforge | Spotted Hotshot 30086 | -2/Protoforge | Spotted Hotshot 30134 | -2/Protoforge | Spotted Hotshot 30136 | -2/Protoforge | Spotted Hotshot 30186 | -2/Protoforge | Identified exit to Access 30207 | -2/Protoforge | Spotted AP7-3 30211 | -2/Protoforge | First assault squad dispatched 30211 | -2/Protoforge | Spotted AP7-3 30229 | -2/Protoforge | Spotted EXE-6 30229 | -2/Protoforge | Spotted EXE-6 30242 | -2/Protoforge | UFD initiated attack on Protoforge 30242 | -2/Protoforge | Loaded intel: 3 recycling unit locations 30260 | -2/Protoforge | Found Exp. Core Analyzer 30263 | -2/Protoforge | Found Exp. Armor Integrity Analyzer 30264 | -2/Protoforge | Scrapoids reinforcements arrived? 30267 | -2/Protoforge | Found Cep. XC Strikerail 30276 | -2/Protoforge | Scrapoids reinforcements arrived? 30278 | -2/Protoforge | Optimus greeted in Protoforge 30304 | -2/Protoforge | Spotted Decapitator 30306 | -2/Protoforge | Destroyed Decapitator 30307 | -2/Protoforge | Allies destroyed Decapitator 30334 | -2/Protoforge | Allies destroyed Hotshot 30340 | -2/Protoforge | Spotted EXE-6 30341 | -2/Protoforge | Spotted EXE-6 30344 | -2/Protoforge | Allies destroyed EXE-6 30345 | -2/Protoforge | Destroyed EXE-6 30353 | -2/Protoforge | Found Exp. Armor Integrity Analyzer 30405 | -2/Protoforge | Destroyed Hotshot 30426 | -2/Protoforge | Destroyed AP7-3 30428 | -2/Protoforge | Spotted Striker 30431 | -2/Protoforge | Allies destroyed AP7-3 30432 | -2/Protoforge | Spotted Striker 30434 | -2/Protoforge | Spotted Striker 30435 | -2/Protoforge | Spotted Striker 30441 | -2/Protoforge | Allies destroyed Striker 30452 | -2/Protoforge | Found Cep. XC Strikerail 30491 | -2/Protoforge | Destroyed 8 combat bots 30497 | -2/Protoforge | Lost 9 allies 30554 | -2/Protoforge | Spotted Executioner 30556 | -2/Protoforge | Spotted Overlord 30560 | -2/Protoforge | Destroyed Overlord 30570 | -2/Protoforge | Spotted Executioner 30573 | -2/Protoforge | Allies destroyed Executioner 30602 | -2/Protoforge | Lost 5 allies 30604 | -2/Protoforge | Spotted Striker 30609 | -2/Protoforge | Spotted Striker 30613 | -2/Protoforge | Spotted Hotshot 30617 | -2/Protoforge | Destroyed Striker 30623 | -2/Protoforge | Spotted Hotshot 30627 | -2/Protoforge | Destroyed Hotshot 30630 | -2/Protoforge | Spotted Hotshot 30635 | -2/Protoforge | Spotted Hotshot 30650 | -2/Protoforge | Spotted Striker 30666 | -2/Protoforge | Spotted Executioner 30717 | -2/Protoforge | Core integrity fell below 50% 30724 | -2/Protoforge | Spotted Striker 30725 | -2/Protoforge | Spotted Striker 30732 | -2/Protoforge | Destroyed Striker 30737 | -2/Protoforge | Spotted Striker 30757 | -2/Protoforge | Destroyed Striker 30778 | -2/Protoforge | Spotted Striker 30778 | -2/Protoforge | Destroyed Striker 30782 | -2/Protoforge | Spotted Executioner 30783 | -2/Protoforge | Destroyed Executioner 30799 | -2/Protoforge | Found Scrap Suit 30801 | -2/Protoforge | Spotted Executioner 30803 | -2/Protoforge | Lost 25 allies 30804 | -2/Protoforge | Destroyed 14 combat bots 30804 | -2/Protoforge | Spotted Striker 30827 | -2/Protoforge | Build established: Scavenger-Gunner 30858 | -2/Protoforge | Found Exp. Remote Shield 30874 | -2/Protoforge | Spotted Executioner 30899 | -2/Protoforge | Spotted Executioner 30909 | -2/Protoforge | Destroyed Executioner 30915 | -2/Protoforge | Spotted Striker 30925 | -2/Protoforge | Found Scrap Suit 30925 | -2/Protoforge | Spotted Striker 30951 | -2/Protoforge | Spotted Striker 30951 | -2/Protoforge | Spotted Executioner 30958 | -2/Protoforge | Destroyed Executioner 30964 | -2/Protoforge | Lost 12 allies 31016 | -2/Protoforge | UFD reported confirmed Drillbomb installation 31021 | -2/Protoforge | Spotted Striker 31022 | -2/Protoforge | Spotted Executioner 31029 | -2/Protoforge | Spotted Striker 31034 | -2/Protoforge | Destroyed Striker 31038 | -2/Protoforge | Spotted Striker 31076 | -2/Protoforge | Lost 7 allies 31083 | -2/Protoforge | Spotted Hotshot 31090 | -2/Protoforge | Destroyed Hotshot 31099 | -2/Protoforge | Spotted Striker 31106 | -2/Protoforge | Spotted Executioner 31109 | -2/Protoforge | Destroyed Executioner 31110 | -2/Protoforge | Spotted Striker 31110 | -2/Protoforge | Spotted Striker 31111 | -2/Protoforge | Destroyed Striker 31131 | -2/Protoforge | Spotted Striker 31131 | -2/Protoforge | Spotted Executioner 31132 | -2/Protoforge | Destroyed 7 combat bots 31135 | -2/Protoforge | UFD reported confirmed Drillbomb installation 31150 | -2/Protoforge | Spotted Striker 31186 | -2/Protoforge | Lost 6 allies 31282 | -2/Protoforge | Additional patrols dispatched to research labs 31330 | -2/Protoforge | Spotted Decapitator 31330 | -2/Protoforge | Spotted Decapitator 31330 | -2/Protoforge | Spotted V202-v 31345 | -2/Protoforge | UFD reported confirmed Drillbomb installation 31386 | -2/Protoforge | Found Prototype Device 31386 | -2/Protoforge | Identified Crosscalibrator 31395 | -2/Protoforge | Spotted Immortal 31396 | -2/Protoforge | Spotted Immortal 31397 | -2/Protoforge | Spotted Decapitator 31397 | -2/Protoforge | Spotted Decapitator 31397 | -2/Protoforge | Spotted Decapitator 31397 | -2/Protoforge | Spotted Decapitator 31445 | -2/Protoforge | Destroyed 9 combat bots 31478 | -2/Protoforge | Spotted V637-z 31478 | -2/Protoforge | Spotted V723-p 31497 | -2/Protoforge | Spotted Decapitator 31497 | -2/Protoforge | Spotted Decapitator 31497 | -2/Protoforge | Spotted Decapitator 31544 | -2/Protoforge | Spotted Striker 31798 | -2/Protoforge | Spotted Executioner 31824 | -2/Protoforge | Lost 3 allies 31838 | -2/Protoforge | Spotted Striker 31841 | -2/Protoforge | Spotted Striker 31873 | -2/Protoforge | UFD reported confirmed Drillbomb installation 31906 | -2/Protoforge | Found Exp. Core Analyzer 31917 | -2/Protoforge | Found Scrap Suit 31961 | -2/Protoforge | Found 0bPrime Scrap Suit 31965 | -2/Protoforge | Spotted Striker 32005 | -2/Protoforge | Destroyed 10 combat bots 32007 | -2/Protoforge | Lost 3 allies 32082 | -2/Protoforge | Spotted Executioner 32083 | -2/Protoforge | Spotted Executioner 32089 | -2/Protoforge | Destroyed Executioner 32126 | -2/Protoforge | Lost 5 allies 32135 | -2/Protoforge | Core integrity fell below 20% 32153 | -2/Protoforge | Spotted Striker 32162 | -2/Protoforge | Destroyed Striker 32169 | -2/Protoforge | Spotted Executioner 32181 | -2/Protoforge | UFD reported confirmed Drillbomb installation 32187 | -2/Protoforge | Destroyed Executioner 32195 | -2/Protoforge | Spotted Striker 32195 | -2/Protoforge | Spotted Executioner 32215 | -2/Protoforge | Destroyed Executioner 32233 | -2/Protoforge | Destroyed Striker 32254 | -2/Protoforge | Destroyed 10 combat bots 32287 | -2/Protoforge | Lost 5 allies 32292 | -2/Protoforge | Spotted Striker 32292 | -2/Protoforge | Spotted Striker 32303 | -2/Protoforge | Destroyed Striker 32323 | -2/Protoforge | P-80 Master assimilated allied 02FBU-D 32336 | -2/Protoforge | Spotted Striker 32374 | -2/Protoforge | Forge Plexus network access discovered 32419 | -2/Protoforge | Installed UFD Drillbomb at designated target 32419 | -2/Protoforge | UFD reported confirmed Drillbomb installation 32424 | -2/Protoforge | Spotted Decapitator 32435 | -2/Protoforge | Destroyed Decapitator 32469 | -2/Protoforge | Spotted Executioner 32473 | -2/Protoforge | Lost 3 allies 32474 | -2/Protoforge | Destroyed Executioner 32524 | -2/Protoforge | Spotted Executioner 32560 | -2/Protoforge | Spotted Executioner 32563 | -2/Protoforge | Spotted Striker 32564 | -2/Protoforge | Destroyed Striker 32585 | -2/Protoforge | Destroyed 10 combat bots 32634 | -2/Protoforge | Found 0bPrime Scrap Suit 32638 | -2/Protoforge | Found Exp. Core Analyzer 32675 | -2/Protoforge | UFD reported confirmed Drillbomb installation 32726 | -2/Protoforge | Spotted Executioner 32774 | -2/Protoforge | Destroyed Executioner 32831 | -2/Protoforge | Spotted Striker 32835 | -2/Protoforge | Spotted Executioner 32878 | -2/Protoforge | Found 0bPrime Scrap Suit 32892 | -2/Protoforge | Spotted Striker 32892 | -2/Protoforge | Destroyed Striker 32893 | -2/Protoforge | UFD reported confirmed Drillbomb installation 32896 | -2/Protoforge | Spotted Executioner 32897 | -2/Protoforge | Destroyed Executioner 32922 | -2/Protoforge | Lost 4 allies 32929 | -2/Protoforge | Spotted Striker 32949 | -2/Protoforge | Spotted Executioner 32950 | -2/Protoforge | Spotted Striker 32952 | -2/Protoforge | Destroyed Executioner 32953 | -2/Protoforge | Spotted Striker 32995 | -2/Protoforge | Lost 5 allies 32997 | -2/Protoforge | Destroyed Striker 33014 | -2/Protoforge | Spotted Executioner 33017 | -2/Protoforge | Destroyed Executioner 33033 | -2/Protoforge | Spotted Striker 33053 | -2/Protoforge | Spotted Executioner 33089 | -2/Protoforge | Spotted Striker 33089 | -2/Protoforge | Spotted Executioner 33094 | -2/Protoforge | P-80 Master assimilated allied TJ-LH2(j) 33101 | -2/Protoforge | Destroyed Executioner 33111 | -2/Protoforge | Found 0bPrime Scrap Suit 33138 | -2/Protoforge | Lost 3 allies 33179 | -2/Protoforge | Build established: Scavenger-Tank 33182 | -2/Protoforge | Spotted Executioner 33183 | -2/Protoforge | Spotted Executioner 33187 | -2/Protoforge | Destroyed Executioner 33190 | -2/Protoforge | Destroyed Executioner 33199 | -2/Protoforge | Destroyed by S-43 Plague with Heavy Machine Gun Last Messages --------------- 33188_ 3K-DPZ(E) destroyed. 33189_ Slug penetrates Scanalyzer. 33190_ Slug penetrates Wall. 33190_ Slug penetrates H-88 Terminator. 33190_ G-73 Enforcer suffers critical hit (Burn). 33190_ Executioner Adv. Kinecellerator blasted off. 33190_ Executioner destroyed. 33191_ Slug penetrates 02FDY-D. 33193_ 02FDY-D destroyed. 33193_ H-88 Terminator KE Penetrator blasted off. 33194_ Penetrated by Slug. 33195_ Imp. Antigrav System destroyed. 33196_ Penetrated by Slug. 33196_ Destroyed Lgt. Quantum Reactor. 33196_ H-88 Terminator knocked back. 33196_ Destroyed Wheel. 33197_ System corrupted: Matter fused (-10). 33198_ 0bP_NET: Lugger 852 inbound, all units not involved in other operations escort to target. 33198_ Penetrated by Slug. Map ----- +----------------------------------------------------+ | !! *" %% % ##?# #??????##### | | # ### # %%% %% "##?????????# # | | #""###"[% % % % % % " #??????????# | | % & % " %"" % % ###??????????# #" | | ! "" " %%" % % #""###??????????# # " | | [=%%= % %"% " " # %"# ###?????????? ?# | | %=!=% %% %" % % " # % "###??????????? ### " | | %%=%% " "%%" % " %[ " #??????????# ?# " | | !!%! # %% !%% % !% #?##??????# #?####" | | #!%% %""#"#""% %| [ # ## #?????# #????##" | | *= =""###""% %!= =%= #?????# #?????# " | | !! % % %=%%% #????# #??????##" | | % %% %%"%[!%%!% ## ###?# #?????####" | | %"%!!%*!* # ## ## #??????# " | | % ######" %!/%=% =% ## #??????### " | | "#######""##%*!|![= #! ## ##?????# " | | " % !;=%!%= #[ # #####??## # " | | # ; %![ % ! ;####??### " | | % + m # ;!= =*![ " ##??# | | " !hg ; ;!= % !!%== ""##?##### " | | " """ ""!%[[; ;!%% !% ! S"##?# " | | " "" S" %=s=; ; =%% ! % !* ""##?## " | | # *" =%[* ; !! * % ; % % ! ""##??# " | | # %"#+###"##;%;; ;%% =*% % % %![###### "% | | # ### /# ;;%! !%!% % %% %;! # # "% | | # ""##""###;; %! !%@%[%; %% # ! % | | # % % ; ; % ! [=%%% ;% % ;#"""""""# | | # #"";;% % ; %%=%=%%%%% %% % %### | | # ##"##"" % % %&%*[%j*!!%&% % ##? | | # # ; % !=! ; %% # | | % ! # "%% ; ; ; % ; "#? | | * % " # ; ;% ;; """ ##? | | "% %% # = % ; % %%%% % ##? | | ! " # ;% %; ; %%%% & "" ##? | | #! " ; % ; ; % % ; "" " " ##? | | """""#"# ! % %%; ; % ; """ """ ##? | | """#"#" # ## # % ; ;;;;;;;;;##+# ##? | | ## #### #### ; % # # #; " """ ##? | | ####### ########""&% # ## " # "" """ ##? | | " " # # ## "# """ """ ##? | | % ###### ""# ##? | | ^ ##??#" T# ##? | | ##??#" "" " ""#############? | | "###+######+###""#######??#" "" " ""#############? | | # #####??## "" " ""##???????????? | | # ##?????## "" " ##???????????? | | + ##?????############???????????? | | # """ ##?????############???????????? | | # "" " ##????????????????????????????? | | # ##????????????????????????????? | +----------------------------------------------------+ Best States ------------- Heat Dissipation 100 Energy Generation 57 Energy Capacity 2700 Matter Stores 800 Matter Capacity 800 Sight Range 21 Terrain Scan Range 24 Terrain Scan Density 210 Cloak Strength 3 Additional Mass Support 16 Armor Coverage 825 Resistance: KI 25 Propulsion Shielding 66 Weapon Shielding 90 Weapon Cycling 15 Evasion (%) 72 Targeting Accuracy 8 Target Analysis 8 Core Analysis 12 Armor Integrity Analysis 50 Recoil Reduction 6 Kinecelleration 50 Offensive Hacking 28 Defensive Hacking 24 Item Schematics ----------------- Cooling System | -9/Materials | Scanalyzed Imp. Targeting Computer | -9/Materials | Scanalyzed Sub. Machine Gun | -9/Materials | Scanalyzed Sml. Matter Pod | -9/Materials | Extracted Med. Laser | -9/Materials | Extracted Disposable Heat Sink | -9/Materials | Extracted Maul | -9/Materials | Extracted Adv. Beam Cannon | -9/Materials | Extracted Beam Cannon | -9/Materials | Extracted Hvy. Hammer | -9/Materials | Extracted Hvy. Assault Rifle | -9/Materials | Extracted Welding Torch | -9/Materials | Extracted Autogun | -9/Materials | Extracted Fission Core | -8/Materials | Scanalyzed Imp. Propulsion Shielding | -8/Materials | Scanalyzed Aerolev Unit | -8/Materials | Scanalyzed Sub. Optics | -8/Materials | Scanalyzed Shield Generator | -8/Materials | Scanalyzed Targeting Computer | -8/Materials | Extracted Adv. Targeting Computer | -8/Materials | Extracted Reactive Plating | -8/Materials | Scanalyzed Target Analyzer | -8/Materials | Extracted Mining Claw | -8/Materials | Extracted Carbon-fiber Leg | -8/Materials | Extracted Lrg. Storage Unit | -8/Materials | Extracted Hpw. Shotgun | -8/Materials | Extracted Imp. Weapon Shielding | -6/Factory | Scanalyzed Centrium Light Armor Plating | -6/Factory | Scanalyzed Adv. Recoil Stabilizer | -6/Factory | Hacked Gravmag Array | -6/Factory | Scanalyzed Gravmag System | -6/Factory | Scanalyzed Lgt. Fission Core | -6/Factory | Scanalyzed Assault Cannon | -6/Factory | Scanalyzed Hpw. Tractor Beam | -6/Factory | Scanalyzed Mic. Nuclear Core | -6/Factory | Scanalyzed Hcp. Matter Pod | -6/Factory | Scanalyzed Imp. Proton Missile Launcher | -6/Factory | Scanalyzed Core Analyzer | -6/Factory | Scanalyzed Antigrav Array | -5/Extension | Hacked Adv. KE Penetrator | -3/Research | Scanalyzed Hvy. Gauss Cannon | -3/Research | Scanalyzed Adv. Reaction Control System | -3/Research | Scanalyzed Adv. Cooling System | -3/Research | Scanalyzed Linear Accelerator | -3/Research | Scanalyzed Graphene Brace | -3/Research | Scanalyzed Fusion Bomb Launcher | -3/Research | Scanalyzed Lgt. Particle Reactor | -3/Research | Scanalyzed Imp. Linear Gravjet | -3/Research | Scanalyzed Lgt. Antimatter Cannon | -3/Research | Scanalyzed Exp. Reaction Control System | -3/Research | Scanalyzed Enh. Hardcell Cannon | -3/Research | Downloaded Cld. Antigrav System | -3/Quarantine | Scanalyzed Adv. Gravity Neutralizer | -3/Quarantine | Scanalyzed Graviton Reactor | -2/Research | Scanalyzed Robot Schematics ------------------ H-55 Commando | -8/Recycling | Hacked Fabricated ------------ H-55 Commando | x2 | -6/Factory Enh. Hardcell Cannon | x2 | -3/Research | Preloaded Repaired ---------- Sub. Machine Gun | 32% | -9/Materials | Broken Sub. Machine Gun | 27% | -8/Materials | Broken Arm. Treads | 18% | -8/Materials Arm. Treads | 30% | -8/Materials Sub. Machine Gun | 72% | -8/Materials | Broken Sub. Machine Gun | 88% | -8/Materials | Broken Autogun | 15% | -8/Materials Hvy. Assault Rifle | 41% | -8/Materials Hvy. Assault Rifle | 73% | -8/Materials Imp. Propulsion Shielding | 51% | -8/Materials Autogun | 71% | -8/Materials Assault Cannon | 48% | -8/Storage Assault Cannon | 72% | -8/Storage Imp. Weapon Shielding | 13% | -6/Factory Assault Cannon | 11% | -6/Factory Imp. Gyrokinetic Inverter | 58% | -4/Factory | Broken Railgun | 1% | -4/Factory Adv. KE Penetrator | 10% | -4/Factory Adv. KE Penetrator | 25% | -4/Factory Adv. KE Penetrator | 9% | -4/Factory Antigrav System | 49% | -4/Factory Adv. KE Penetrator | 62% | -4/Factory Antigrav System | 36% | -4/Factory Antigrav System | 56% | -4/Factory Adv. KE Penetrator | 5% | -3/Research Imp. Antigrav System | 5% | -3/Research Fusion Bomb Launcher | 99% | -3/Research | Broken Adv. Cooling System | 1% | -3/Research Lgt. Quantum Reactor | 65% | -3/Research Cmb. Antigrav System | 61% | -2/Research Adv. Force Field | 15% | -2/Testing Alien Tech Used ----------------- Integrated Dissipator Core Cannon Subatomic Replicator Sigix Terminator Core Stripper Matter Drive Sigix Broadsword Supercharged Sigix Terminator Transdimensional Reconstructor Achievements -------------- None Challenges ------------ None Game ------ Seed AblativePlatingCyclogen Manual? 0 Play Time 11:23:43 Cumulative 478.7 hours Start 2025.08.06 @ 19:25:14 End 2025.08.08 @ 12:19:41 Sessions 5 Manual Loads 0 Difficulty Rogue Special Mode None Game No. 263 Rogue 263 Adventurer 0 Explorer 0 Win Type - Total 5 Types 3/0/1/1/0/0/0/0/0/0 Lore% 86 Gallery% 75 Achievement% 68 Wizard Run 0 Options --------- Layout 2 ASCII 0 Keyboard 1 Movement Vi Keybinds 0 Fullscreen 1 Font 16/Tamsyn Map View 55x47 Zoom Use 0% Tactical HUD 1 Map Filters NONE Filters NONE Steam 0 RUN: 1b43c2a4-27eb-4092-ac23-5aac547243bc